Workbook

Sheet раскл3-7
C2: Меню-раскладка к примерному 10-дневному меню
C3: для организации питания детей в дошкольных образовательных учреждениях
C4: от 3-7 лет
A5: День 1 - ый
A6: Прием пищи | C6: Выход блюда | D6: Кол - во | E6: Кол - во | F6: Пищевые вещества (г) | I6: Энергетическая | J6: № рецептуры
A7: Наименование блюд | D7: (в гр ) | E7: (в гр ) | I7: ценность
D8: брутто | E8: нетто | F8: белки | G8: жиры | H8: угл-ды | I8: Ккал
B9: ЗАВТРАК
A10: Каша манная молочная с маслом | C10: 200/3 | F10: 10.00 | G10: 10.00 | H10: 24.50 | I10: 228.00 | J10: ТТК №4
B11: Крупа манная | D11: 20.00 | E11: 20.00
B12: Молоко | D12: 100.00 | E12: 100.00
B13: вода | D13: 76.00 | E13: 76.00
B14: сахар | D14: 3.00 | E14: 3.00
B15: Соль | D15: 1.50 | E15: 1.50
B16: Масло сливочное | D16: 3.00 | E16: 3.00
A17: Чай с сахаром | C17: 180/5 | F17: 0.06 | G17: 0.02 | H17: 4.99 | I17: 20.00 | J17: № 411 Дели2016
B18: Заварка | D18: 0.3 | E18: 0.3
B19: сахар | D19: 5 | E19: 5
B20: Вода | D20: 180 | E20: 180
A21: Бутерброд с маслом сливочным | C21: 25/5 | F21: 1.90 | G21: 4.40 | H21: 13.00 | I21: 99.00 | J21: №1 Дели2010
B22: Батон нарезной | D22: 25.00 | E22: 25.00
B23: Масло сливочное | D23: 5.00 | E23: 5.00
A24: Итого: | C24: 418 | F24: =SUM(F9:F23) -> 11.96 | G24: =SUM(G9:G23) -> 14.42 | H24: =SUM(H9:H23) -> 42.49 | I24: =SUM(I9:I23) -> 347.00
A25: Сок | C25: 125 | D25: 125 | E25: 125 | F25: 0.90 | G25: 0.08 | H25: 22.00 | I25: 91.00 | J25: №399 Сб.Дели2010
A27: Итого: | C27: =SUM(C25) -> 125 | F27: =SUM(F25) -> 0.90 | G27: =SUM(G25) -> 0.08 | H27: =SUM(H25) -> 22.00 | I27: =SUM(I25) -> 91.00
C28: 543 | F28: =F24+F27 -> 12.86 | G28: =G24+G27 -> 14.50 | H28: =H24+H27 -> 64.49 | I28: =I24+I27 -> 438.00
B29: ОБЕД
A30: Салат из свежей капусты | C30: 50 | F30: 0.70 | G30: 2.50 | H30: 4.50 | I30: 43.50 | J30: №21 Дели2016
B31: капуста свежая | D31: 50.60 | E31: 40.50
B32: морковь | D32: 6.25 | E32: 5.00
B33: сахар | D33: 0.80 | E33: 0.80
B34: Масло растительное | D34: 2.50 | E34: 2.50
B35: соль | D35: 0.20 | E35: 0.20
A36: Суп вермишелевый с картофелем и курицей | C36: 200/10 | F36: 3.86 | G36: 5.80 | H36: 15.24 | I36: 133.00 | J36: №88 Дели 2016
B37: цыплята | D37: 22.61 | E37: 14.67
B38: Картофель | D38: 79.80 | E38: 60.00
B39: Морковь | D39: 10.64 | E39: 8.00
B40: Лук репчатый | D40: 9.52 | E40: 8.00
B41: Вермишель | D41: 8.00 | E41: 8.00
B42: Масло растительное | D42: 2.40 | E42: 2.40
B43: Соль | D43: 1.00 | E43: 1.00
B44: Вода | D44: 152.00 | E44: 152.00
A45: Тефтели из говядины с соусом томатным | C45: 70/10 | F45: 6.2 | G45: 6.5 | H45: 5 | I45: 103 | J45: ТТК № 1152 от 09.10.2020 и №364 С-Петербург 2008
B46: фарш из говядины | D46: 48 | E46: 48
B47: Хлеб пшеничный 1с | D47: 6 | E47: 6
B48: Вода | D48: 6 | E48: 6
B49: Лук репчатый | D49: 14.28 | E49: 11.99
B50: Крупа манная | D50: 3 | E50: 3
B51: Соль | D51: 0.5 | E51: 0.5
B52: масса полуфабриката | E52: 74
B53: Масло растительное | D53: 2 | E53: 2
B54: соус томатный | E54: 10.0
B55: вода | D55: 9.0 | E55: 9.0
B56: Масло растительное | D56: 0.4 | E56: 0.4
B57: Мука пшеничная | D57: 0.4 | E57: 0.4
B58: морковь | D58: 0.79 | E58: 0.60
B59: Лук репчатый | D59: 0.24 | E59: 0.20
B60: Томат-паста | D60: 1.0 | E60: 1.0
B61: Масло растительное | D61: 0.2 | E61: 0.2
B62: соль | D62: 0.1 | E62: 0.1
B63: сахар | D63: 0.2 | E63: 0.2
A64: Каша гречневая вязкая | C64: 130/3 | F64: 6.20 | G64: 5.80 | H64: 38.00 | I64: 229.00 | J64: №182,Дели 2016
B65: Крупа гречневая | D65: 32.50 | E65: 32.50
B66: Вода | D66: 108.00 | E66: 108.00
B67: Масло сливочное | D67: 3.00 | E67: 3.00
B68: Соль | D68: 0.50 | E68: 0.50
A69: Кисель | C69: 180 | H69: 10.00 | I69: 40.00 | J69: №284Партнер2014
B70: Кисель-концентрат | D70: 21.60 | E70: 21.60
B71: вода | D71: 180.00 | E71: 180.00
B72: Сахар | D72: 5.00 | E72: 5.00
A73: Хлеб сельский | C73: 37.5 | D73: 37.50 | E73: 37.50 | F73: 1.8 | G73: 0.4 | H73: 18 | I73: 82.5
A74: Итого: | C74: 690.5 | F74: =SUM(F29:F73) -> 18.76 | G74: =SUM(G29:G73) -> 21.00 | H74: =SUM(H29:H73) -> 90.74 | I74: =SUM(I29:I73) -> 631.00
B75: ПОЛДНИК
A76: Булочка Домашняя | C76: 50 | F76: 4.90 | G76: 5.00 | H76: 38.00 | I76: 217.00 | J76: №258 Партнер г. Уфа 2014
B77: Мука пшеничная | D77: 34.00 | E77: 34.00
B78: Сахар | D78: 7.00 | E78: 7.00
B79: вода | D79: 14.00 | E79: 14.00
B80: Масло растительное | D80: 7.00 | E80: 7.00
B81: Дрожжи сухие | D81: 0.20 | E81: 0.20
B82: Соль | D82: 0.30 | E82: 0.30
B83: Яйцо | D83: 1.00 | E83: 1.00
B84: Масса полуфабриката | E84: 60.50
B85: Масло растительное | D85: 0.20 | E85: 0.20
A86: Катык | C86: 110 | F86: 3.77 | G86: 2.75 | H86: 5 | I86: 62.1 | J86: №401Дели2010
B87: катык | D87: 114.00 | E87: 110.00
A88: Рагу с курицей | C88: 120/25 | F88: 6.00 | G88: 9.50 | H88: 16.90 | I88: 177.00 | J88: ТТК №63
B89: цыплята | D89: 53.84 | E89: 34.99
B90: Масса тушеного мяса | E90: 25
B91: Картофель | D91: 117.04 | E91: 88.00
B92: Морковь | D92: 14.89 | E92: 11.20
B93: Соль | D93: 0.50 | E93: 0.50
B94: вода | D94: 32.00 | E94: 32.00
B95: Масло растительное | D95: 4.00 | E95: 4.00
B96: Мука пшеничная | D96: 2.00 | E96: 2.00
B97: сахар | D97: 0.38 | E97: 0.38
A98: Напиток из урюка | C98: 180 | F98: 0.6 | G98: 0.1 | H98: 15.0 | I98: 63 | J98: ТТК №68
B99: урюк | D99: 15.30 | E99: 15.00
B100: вода | D100: 180.00 | E100: 180.00
B101: Сахар | D101: 5.00 | E101: 5.00
A102: Хлеб пшеничный 1с | C102: 20 | D102: 20.00 | E102: 20.00 | F102: 1.52 | G102: 0.16 | H102: 9.84 | I102: 47.00
A103: Итого: | C103: 505 | F103: =SUM(F76:F102) -> 16.79 | G103: =SUM(G76:G102) -> 17.47 | H103: =SUM(H76:H102) -> 84.74 | I103: =SUM(I76:I102) -> 565.60
A104: ВСЕГО: | C104: =C24+C27+C74+C103 -> 1738.5 | F104: =F24+F27+F74+F103 -> 48.41 | G104: =G24+G27+G74+G103 -> 52.97 | H104: =H24+H27+H74+H103 -> 239.97 | I104: =I24+I27+I74+I103 -> 1634.60
A106: День 2- ой
A107: Прием пищи | C107: Выход блюда | D107: Кол - во | E107: Кол - во | F107: Пищевые вещества (г) | I107: Энергетическая | J107: № рецептуры
A108: Наименование блюд | D108: (в гр ) | E108: (в гр ) | I108: ценность
D109: брутто | E109: нетто | F109: белки | G109: жиры | H109: угл-ды | I109: Ккал
B110: ЗАВТРАК
A111: Каша "Дружба" молочная с маслом | C111: 200/3 | F111: 5.20 | G111: 5.80 | H111: 25.20 | I111: 173.80 | J111: ТТК №7
B112: Крупа рисовая | D112: 15.00 | E112: 15.00
B113: Крупа пшенная | D113: 11.00 | E113: 11.00
B114: Молоко | D114: 86.00 | E114: 86.00
B115: Вода | D115: 86.00 | E115: 86.00
B116: Сахар | D116: 1.00 | E116: 1.00
B117: Соль | D117: 1.00 | E117: 1.00
B118: Масло сливочное | D118: 3.00 | E118: 3.00
A119: Какао с молоком | C119: 180 | F119: 2.42 | G119: 2.58 | H119: 13.61 | I119: 87.30 | J119: №272 Парнер г. Уфа 2014
B120: Какао-порошок | D120: 1.50 | E120: 1.50
B121: Сахар | D121: 8.00 | E121: 8.00
B122: Молоко | D122: 90.00 | E122: 90.00
B123: Вода | D123: 100.00 | E123: 100.00
A124: Бутерброд с сыром, маслом | C124: 25/7/3 | F124: 4.00 | G124: 6.00 | H124: 12.83 | I124: 122.00 | J124: №3 Дели2010
B125: Батон нарезной | D125: 25.00 | E125: 25.00
B126: Сыр | D126: 7.14 | E126: 7.00
B127: Масло сливочное | D127: 3.00 | E127: 3.00
A128: Итого: | C128: 418 | F128: =SUM(F110:F126) -> 11.62 | G128: =SUM(G110:G126) -> 14.38 | H128: =SUM(H110:H126) -> 51.64 | I128: =SUM(I110:I126) -> 383.10
A129: Фруктовое пюре | C129: 125 | D129: 125 | E129: 125 | F129: 13.00 | I129: 55.00
A131: Итого: | C131: 100 | F131: =SUM(F129) -> 13.00 | G131: =SUM(G129) -> 0.00 | H131: =SUM(H129) -> 0.00 | I131: =SUM(I129) -> 55.00
C132: 543 | F132: =F128+F131 -> 24.62 | G132: =G128+G131 -> 14.38 | H132: =H128+H131 -> 51.64 | I132: =I128+I131 -> 438.10
B133: ОБЕД
A134: Салат из свеклы | C134: 50 | F134: 0.60 | G134: 2.50 | H134: 4.20 | I134: 42.00 | J134: №34, Дели2016
B135: Свекла | D135: 64.60 | E135: 47.50
B136: Масло растительное | D136: 2.50 | E136: 2.50
A137: Суп из овощей с мясными фрикадельками, со сметаной | C137: 200/15/6 | F137: 6.20 | G137: 5.25 | H137: 29.00 | I137: 188.00 | J137: №64 "Партнер"2014
B138: Фарш из говядины | D138: 17.1 | E138: 17.1
B139: Лук репчатый | D139: 1.79 | E139: 1.5
B140: Яйцо | D140: 1.5 | E140: 1.5
B141: Вода для фарша | D141: 1.7 | E141: 1.7
B142: Масса полуфабриката | E142: 20.1
B143: Капуста свежая | D143: 20.00 | E143: 16.00
B144: Картофель | D144: 53.20 | E144: 40.00
B145: Морковь | D145: 10.64 | E145: 8.00
B146: Лук репчатый | D146: 9.52 | E146: 8.00
B147: Масло растительное | D147: 4.00 | E147: 4.00
B148: Соль | D148: 1.00 | E148: 1.00
B149: Бульон или вода | D149: 152.00 | E149: 152.00
B150: Сметана | D150: 6.00 | E150: 6.00
A151: Котлеты рубленые из птицы | C151: 70 | F151: 6.20 | G151: 10.80 | H151: 3.00 | I151: 134.00 | J151: № 205,справ.М2003
B152: Цыплята | D152: 80 | E152: 52.0
B153: Хлеб пшеничный 1с | D153: 13 | E153: 13.0
B154: Вода | D154: 18.5 | E154: 18.5
B155: Сухари панировочные | D155: 7 | E155: 7.0
B156: масса полуфабриката | E156: 87.5
B157: Масло растительное | D157: 0.9 | E157: 0.9
B158: Соль | D158: 0.8 | E158: 0.8
A159: Пюре Картофельное | C159: 130 | F159: 3.70 | G159: 4.44 | H159: 25.00 | I159: 155.00 | J159: №137 Партнер 2014
B160: Картофель | D160: 148.43 | E160: 111.60
B161: Молоко | D161: 20.47 | E161: 19.50
B162: Масло сливочное | D162: 3.00 | E162: 3.00
B163: Соль | D163: 1.00 | E163: 1.00
A164: Компот из свежих яблок | C164: 180 | F164: 0.10 | G164: 0.10 | H164: 11.80 | I164: 49.00 | J164: № 390 Дели 2016
B165: яблоки | D165: 40.8 | E165: 36.0
B166: вода | D166: 155.0 | E166: 155.0
B167: сахар | D167: 5.0 | E167: 5.0
A168: Хлеб сельский | C168: 37.5 | D168: 37.50 | E168: 37.50 | F168: 1.8 | G168: 0.4 | H168: 18 | I168: 82.5
A169: Итого: | C169: 683.5 | F169: =SUM(F134:F168) -> 18.60 | G169: =SUM(G134:G168) -> 23.49 | H169: =SUM(H134:H168) -> 91.00 | I169: =SUM(I134:I168) -> 650.50
B170: ПОЛДНИК
A171: Кондитерские изделия | C171: 10 | F171: 3.86 | G171: 3.38 | H171: 34.10 | I171: 180.00
A172: печенье | D172: 10.00 | E172: 10.00
A173: Молоко кипяченое | C173: 110 | F173: 2.50 | G173: 2.75 | H173: 4.00 | I173: 51.00 | J173: №419 Дели2016
B174: молоко | D174: 115.90 | E174: 110.00
A175: Суфле из творога с молоком сгущенным | C175: 150/20 | F175: 9.00 | G175: 12.50 | H175: 24.00 | I175: 245.00 | J175: ТТК №567
B176: Творог | D176: 109.28 | E176: 107.14
B177: крупа манная | D177: 11.40 | E177: 11.40
B178: Яйцо | D178: 7.14 | E178: 7.14
B179: Сахар | D179: 11.40 | E179: 11.40
B180: Молоко | D180: 21.40 | E180: 21.40
B181: Сметана | D181: 14.28 | E181: 14.28
B182: соль | D182: 0.30 | E182: 0.30
B183: Масло растительное | D183: 0.60 | E183: 0.60
B184: молоко сгущенное | D184: 20.00 | E184: 20.00
A185: Чай с сахаром и лимоном | C185: 180/5/5 | F185: 0.12 | G185: 0.01 | H185: 10.20 | I185: 41.00 | J185: №393Дели2010
B186: Заварка | D186: 0.35 | E186: 0.35
B187: Сахар | D187: 5 | E187: 5
B188: лимон | D188: 5.1 | E188: 5
B189: Вода | D189: 180.0 | E189: 180.0
A190: Хлеб пшеничный 1с | C190: 20 | D190: 20.00 | E190: 20.00 | F190: 1.52 | G190: 0.16 | H190: 9.84 | I190: 47.00
A191: Итого: | C191: 500 | F191: =SUM(F170:F190) -> 17.00 | G191: =SUM(G170:G190) -> 18.80 | H191: =SUM(H170:H190) -> 82.14 | I191: =SUM(I170:I190) -> 564.00
A192: ВСЕГО: | C192: =C128+C131+C169+C191 -> 1701.5 | F192: =F128+F131+F169+F191 -> 60.22 | G192: =G128+G131+G169+G191 -> 56.67 | H192: =H128+H131+H169+H191 -> 224.78 | I192: =I128+I131+I169+I191 -> 1652.60
A194: День 3 - ий
A195: Прием пищи | C195: Выход блюда | D195: Кол - во | E195: Кол - во | F195: Пищевые вещества (г) | I195: Энергетическая | J195: № рецептуры
A196: Наименование блюд | D196: (в гр ) | E196: (в гр ) | I196: ценность
D197: брутто | E197: нетто | F197: белки | G197: жиры | H197: угл-ды | I197: Ккал
B198: ЗАВТРАК
A199: Каша Геркулесовая молочная с маслом | C199: 200/3 | F199: 6.70 | G199: 7.50 | H199: 22.00 | I199: 182.30 | J199: ТТК №5
B200: Крупа Геркулесовая | D200: 25.00 | E200: 25.00
B201: Молоко | D201: 100.00 | E201: 100.00
B202: вода | D202: 76.00 | E202: 76.00
B203: Сахар | D203: 1.00 | E203: 1.00
B204: Соль | D204: 1.00 | E204: 1.00
B205: Масло сливочное | D205: 3.00 | E205: 3.00
... 706 more rows

Sheet 1-3 лет Послед
A1: "Согласовано" | E1: "Утверждаю"
A2: ________________________ | E2: Заместитель генерального директора по организации питания АО "Департамент продовольствия и социального питания г. Казани"
A3: __________________________ | E3: __________________А.К. Агапова
E4: Сентябрь 2025г
C5: Примерное 10-дневное меню
C6: для организации питания детей в дошкольных образовательных учреждениях
C7: от 1-3 лет с 7-12 часовым пребыванием
B8: 1 неделя
A9: День 1 - ый
A10: Прием пищи | C10: Выход блюда | D10: Пищевые вещества (г) | G10: Энергетическая | H10: № рецептуры
A11: Наименование блюд | G11: ценность
D12: белки | E12: жиры | F12: угл-ды | G12: Ккал
B13: ЗАВТРАК
A14: Каша манная молочная с маслом | C14: 150/3 | D14: 7.50 | E14: 7.50 | F14: 18.40 | G14: 171.10 | H14: ТТК №4
A15: Чай с сахаром | C15: 160/4 | D15: 0.05 | E15: 0.01 | F15: 4.42 | G15: 18.00 | H15: № 411 Дели2016
A16: Бутерброд с маслом сливочным | C16: 25/5 | D16: 1.9 | E16: 4.4 | F16: 13 | G16: 99 | H16: №1 Дели2010
A17: Итого: | C17: 347 | D17: =SUM(D13:D16) -> 9.45 | E17: =SUM(E13:E16) -> 11.91 | F17: =SUM(F13:F16) -> 35.82 | G17: =SUM(G13:G16) -> 288.10
A18: Сок | C18: 125 | D18: 0.60 | E18: 0.30 | F18: 13.00 | G18: 57.00 | H18: №418Дели2016
A19: персиковый
A20: Итого: | C20: 125 | D20: =SUM(D18) -> 0.60 | E20: =SUM(E18) -> 0.30 | F20: =SUM(F18) -> 13.00 | G20: =SUM(G18) -> 57.00
C21: 472 | D21: =D17+D20 -> 10.05 | E21: =E17+E20 -> 12.21 | F21: =F17+F20 -> 48.82 | G21: =G17+G20 -> 345.10
B22: ОБЕД
A23: Салат из свежей капусты | C23: 30 | D23: 0.42 | E23: 1.50 | F23: 2.70 | G23: 26.00 | H23: №21, Дели 2016
A24: Суп вермишелевый с картофелем и курицей | C24: 150/10 | D24: 3.00 | E24: 4.32 | F24: 11.34 | G24: 99.00 | H24: №88 Дели 2016
A25: Тефтели из говядины | C25: 50 | D25: 3.87 | E25: 5 | F25: 3.13 | G25: 73 | H25: ТТК № 1152 от 09.10.2020
A26: Каша гречневая вязкая | C26: 110/2,5 | D26: 5.50 | E26: 5.00 | F26: 32.00 | G26: 195.00 | H26: №182,Дели 2016
A27: Кисель | C27: 150 | F27: 8.34 | G27: 33.34 | H27: №284Партнер2014
A28: Хлеб сельский | C28: 30 | D28: 1.5 | E28: 0.3 | F28: 14.3 | G28: 66
A29: Итого: | C29: 532.50 | D29: =SUM(D23:D28) -> 14.29 | E29: =SUM(E23:E28) -> 16.12 | F29: =SUM(F23:F28) -> 71.81 | G29: =SUM(G23:G28) -> 492.34
B30: ПОЛДНИК
A31: Булочка Домашняя | C31: 40 | D31: 3.60 | E31: 4.00 | F31: 29.00 | G31: 167.00 | H31: №258 Партнер г. Уфа 2014
A32: Катык | C32: 100 | D32: 3.00 | E32: 2.50 | F32: 4.50 | G32: 54.30 | H32: №401Дели2010
A33: Рагу с курицей | C33: 20/100 | D33: 4.50 | E33: 7.60 | F33: 13.00 | G33: 138.00 | H33: ТТК №63
A34: Напиток из урюка | C34: 150 | D34: 0.50 | E34: 0.03 | F34: 12.50 | G34: 52.10 | H34: ТТК №68
A35: Хлеб пшеничный 1с | C35: 20 | D35: 1.6 | E35: 0.2 | F35: 9.8 | G35: 47
A36: Итого: | C36: 430.00 | D36: =SUM(D31:D35) -> 13.20 | E36: =SUM(E31:E35) -> 14.33 | F36: =SUM(F31:F35) -> 68.80 | G36: =SUM(G31:G35) -> 458.40
A37: ВСЕГО: | C37: =C17+C20+C29+C36 -> 1434.50 | D37: =D17+D20+D29+D36 -> 37.54 | E37: =E17+E20+E29+E36 -> 42.66 | F37: =F17+F20+F29+F36 -> 189.43 | G37: =G17+G20+G29+G36 -> 1295.84
A38: День 2- ой
A39: Прием пищи | C39: Выход блюда | D39: Пищевые вещества (г) | G39: Энергетическая | H39: № рецептуры
A40: Наименование блюд | G40: ценность
D41: белки | E41: жиры | F41: угл-ды | G41: Ккал
B42: ЗАВТРАК
A43: Каша "Дружба" молочная с маслом | C43: 150/3 | D43: 3.90 | E43: 4.35 | F43: 19.00 | G43: 131.00 | H43: ТТК №7
A44: Какао с молоком | C44: 160 | D44: 2.15 | E44: 2.29 | F44: 12.09 | G44: 65.16 | H44: №272 Парнер г. Уфа 2014
A45: Бутерброд с сыром, маслом | C45: 25/5/3 | D45: 3.50 | E45: 5.95 | F45: 12.90 | G45: 119.60 | H45: №3Дели2010
A46: Итого: | C46: 346 | D46: =SUM(D42:D45) -> 9.55 | E46: 12.33 | F46: =SUM(F42:F45) -> 43.99 | G46: =SUM(G42:G45) -> 315.76
A47: Фруктовое пюре | C47: 125 | D47: 13.00 | G47: 55.00
A49: Итого: | C49: 85 | D49: =SUM(D47) -> 13.00 | E49: =SUM(E47) -> 0.00 | F49: =SUM(F47) -> 0.00 | G49: =SUM(G47) -> 55.00
C50: 471 | D50: =D46+D49 -> 22.55 | E50: =E46+E49 -> 12.33 | F50: =F46+F49 -> 43.99 | G50: =G46+G49 -> 370.76
B51: ОБЕД
A52: Салат из свеклы | C52: 30 | D52: 0.36 | E52: 1.50 | F52: 2.52 | G52: 25.00 | H52: №34, Дели2016
A53: Суп из овощей с мясными фрикадельками, со сметаной | C53: 150/10/5 | D53: 4.70 | E53: 3.90 | F53: 23.00 | G53: 146.00 | H53: №64 "Партнер"2014
A54: Котлеты рубленые из птицы | C54: 50 | D54: 4.40 | E54: 8.30 | F54: 2.00 | G54: 100.00 | H54: № 205,справ.М2003
A55: Пюре Картофельное | C55: 110 | D55: 3.13 | E55: 3.76 | F55: 13.03 | G55: 131.15 | H55: №137 Партнер 2014
A56: Компот из свежих яблок | C56: 150 | D56: 0.10 | E56: 0.10 | F56: 10.20 | G56: 42.10 | H56: № 390 Дели 2016
A57: Хлеб сельский | C57: 30 | D57: 1.5 | E57: 0.3 | F57: 14.3 | G57: 66
A58: Итого: | C58: 535.00 | D58: =SUM(D52:D57) -> 14.19 | E58: =SUM(E52:E57) -> 17.86 | F58: =SUM(F52:F57) -> 65.05 | G58: =SUM(G52:G57) -> 510.25
B59: ПОЛДНИК
A60: Кондитерские изделия | C60: 10 | D60: 2.20 | E60: 2.80 | F60: 20.50 | G60: 114.00
A61: печенье
A62: Молоко кипяченое | C62: 100 | D62: 2.30 | E62: 2.50 | F62: 3.60 | G62: 46.00 | H62: №419 Дели2016
A63: Суфле из творога с молоком сгущенным | C63: 100/10 | D63: 5.82 | E63: 8.10 | F63: 15.53 | G63: 158.00 | H63: ТТК №567
A64: Чай с сахаром и лимоном | C64: 150/4/4 | D64: 0.09 | E64: 0.01 | F64: 8.50 | G64: 34.50 | H64: №393Дели2010
A65: Хлеб пшеничный 1с | C65: 20 | D65: 1.6 | E65: 0.2 | F65: 9.8 | G65: 47
A66: Итого: | C66: 398 | D66: =SUM(D60:D65) -> 12.01 | E66: =SUM(E60:E65) -> 13.61 | F66: =SUM(F60:F65) -> 57.93 | G66: =SUM(G60:G65) -> 399.50
A67: ВСЕГО: | C67: =C46+C49+C58+C66 -> 1364.00 | D67: =D46+D49+D58+D66 -> 48.75 | E67: =E46+E49+E58+E66 -> 43.80 | F67: =F46+F49+F58+F66 -> 166.97 | G67: =G46+G49+G58+G66 -> 1280.51
A68: День 3 - ий
A69: Прием пищи | C69: Выход блюда | D69: Пищевые вещества (г) | G69: Энергетическая | H69: № рецептуры
A70: Наименование блюд | G70: ценность
D71: белки | E71: жиры | F71: угл-ды | G71: Ккал
B72: ЗАВТРАК
A73: Каша геркулесовая молочная с маслом | C73: 150/3 | D73: 5.00 | E73: 5.63 | F73: 16.50 | G73: 136.50 | H73: ТТК №5
A74: Чай с молоком,сахаром | C74: 160/4 | D74: 2.30 | E74: 2.00 | F74: 11.90 | G74: 74.80 | H74: №394Дели2010
A75: Бутерброд с маслом сливочным | C75: 25/5 | D75: 1.9 | E75: 4.4 | F75: 13 | G75: 99 | H75: №1 Дели2010
A76: Итого: | C76: 347 | D76: =SUM(D72:D75) -> 9.20 | E76: =SUM(E72:E75) -> 12.03 | F76: =SUM(F72:F75) -> 41.40 | G76: =SUM(G72:G75) -> 310.30
A77: Сок | C77: 125 | D77: 0.80 | E77: 0.20 | F77: 7.00 | G77: 33.00 | H77: №418Дели2016
A78: персиковый
A79: Итого: | C79: =SUM(C77) -> 125 | D79: =SUM(D77) -> 0.80 | E79: =SUM(E77) -> 0.20 | F79: =SUM(F77) -> 7.00 | G79: =SUM(G77) -> 33.00
C80: 472 | D80: =D76+D79 -> 10.00 | E80: =E76+E79 -> 12.23 | F80: =F76+F79 -> 48.40 | G80: =G76+G79 -> 343.30
B81: ОБЕД
A82: Помидоры свежие порционно | C82: 30 | D82: 0.42 | E82: 0.06 | F82: 1.37 | G82: 9.00 | H82: стр563,сб1996
A83: Суп с рисовой крупой и картофелем с курицей | C83: 150/10 | D83: 2.00 | E83: 6.80 | F83: 3.00 | G83: 82.00 | H83: №86 Дели 2016
A84: Соус мясной "Смак" | C84: 50 | D84: 7.21 | E84: 4.86 | F84: 12.14 | G84: 121.43 | H84: ТТК № 1523 от 28.07.2021
A85: Макароны отварные | C85: 110 | D85: 4.10 | E85: 3.00 | F85: 25.00 | G85: 143.40 | H85: №218 Дели 2016
A86: Компот из сухофруктов | C86: 150 | D86: 0.15 | E86: 0.1 | F86: 21.5 | G86: 87 | H86: №394, Дели 2016
A87: Хлеб сельский | C87: 30 | D87: 1.5 | E87: 0.3 | F87: 14.3 | G87: 66
A88: Итого: | C88: 530 | D88: =SUM(D82:D87) -> 15.38 | E88: =SUM(E82:E87) -> 15.11 | F88: =SUM(F82:F87) -> 77.31 | G88: =SUM(G82:G87) -> 508.83
B89: ПОЛДНИК
A90: Булочка Дорожная | C90: 40 | D90: 2.84 | E90: 4.73 | F90: 24.08 | G90: 150.40 | H90: №453 Дели 2016
A91: Ряженка | C91: 100 | D91: 2.90 | E91: 2.50 | F91: 4.20 | G91: 55.60 | H91: №401Дели2010
A92: Яйцо вареное | C92: 1/2шт | D92: 2.50 | E92: 2.30 | F92: 0.15 | G92: 31.50 | H92: №227 Дели 2016
A93: Капуста тушеная (в сметанном соусе) | C93: 110 | D93: 2.75 | E93: 4.48 | F93: 20 | G93: 131 | H93: ТТК№53Д
A94: Напиток шиповника | C94: 150/4 | D94: 0.5 | E94: 0.25 | F94: 5.4 | G94: 25.9 | H94: ТТК № 59
A95: Хлеб пшеничный 1с | C95: 20 | D95: 1.6 | E95: 0.2 | F95: 9.8 | G95: 47
A96: Итого: | C96: 448 | D96: =SUM(D90:D95) -> 13.09 | E96: =SUM(E90:E95) -> 14.46 | F96: =SUM(F90:F95) -> 63.63 | G96: =SUM(G90:G95) -> 441.40
A97: ВСЕГО: | C97: =C76+C79+C88+C96 -> 1450 | D97: =D76+D79+D88+D96 -> 38.47 | E97: =E76+E79+E88+E96 -> 41.80 | F97: =F76+F79+F88+F96 -> 189.34 | G97: =G76+G79+G88+G96 -> 1293.53
A98: День 4 - ый
A99: Прием пищи | C99: Выход блюда | D99: Пищевые вещества (г) | G99: Энергетическая | H99: № рецептуры
A100: Наименование блюд | G100: ценность
D101: белки | E101: жиры | F101: угл-ды | G101: Ккал
B102: ЗАВТРАК
A103: Каша пшённая молочная с маслом | C103: 150/3 | D103: 6.00 | E103: 4.95 | F103: 19.50 | G103: 146.00 | H103: ТТК №6
A104: Кофейный напиток с молоком | C104: 165/7 | D104: 1.16 | E104: 1.28 | F104: 11.4 | G104: 62 | H104: №270 Партнер г. Уфа 2014
A105: Бутерброд с сыром, маслом | C105: 25/5/3 | D105: 3.50 | E105: 5.95 | F105: 12.90 | G105: 119.60 | H105: №3Дели2010
A106: Итого: | C106: 358 | D106: =SUM(D102:D105) -> 10.66 | E106: =SUM(E102:E105) -> 12.18 | F106: =SUM(F102:F105) -> 43.80 | G106: =SUM(G102:G105) -> 327.60
A107: Фрукты свежие | C107: 85 | D107: 0.34 | E107: 0.34 | F107: 10.20 | G107: 45.00 | H107: № 386 Дели 2016
A108: яблоко зеленое
A109: Итого: | C109: 85 | D109: =SUM(D107) -> 0.34 | E109: =SUM(E107) -> 0.34 | F109: =SUM(F107) -> 10.20 | G109: =SUM(G107) -> 45.00
C110: 443 | D110: =D106+D109 -> 11.00 | E110: =E106+E109 -> 12.52 | F110: =F106+F109 -> 54.00 | G110: =G106+G109 -> 372.60
B111: ОБЕД
A112: Салат из моркови | C112: 30 | D112: 0.60 | E112: 0.05 | F112: 3.00 | G112: 14.00 | H112: №42 Дели2016г
A113: Щи со свежей капустой, картофелем, на м/б и сметаной | C113: 150/5 | D113: 3.45 | E113: 6.00 | F113: 17.85 | G113: 140.00 | H113: №73 Дели 2016
A114: Жаркое по-домашнему из отварной говядины | C114: 130 | D114: 8.86 | E114: 9.01 | F114: 27.28 | G114: 226 | H114: ТТК №29 Д
A115: Кисель | C115: 150 | F115: 8.34 | G115: 33.34 | H115: №284Партнер2014
A116: Хлеб сельский | C116: 30 | D116: 1.5 | E116: 0.3 | F116: 14.3 | G116: 66
A117: Итого: | C117: 495 | D117: =SUM(D112:D116) -> 14.41 | E117: =SUM(E112:E116) -> 15.36 | F117: =SUM(F112:F116) -> 70.77 | G117: =SUM(G112:G116) -> 479.34
B118: ПОЛДНИК
A119: Кондитерские изделия | C119: 21 | D119: 1.00 | E119: 2.00 | F119: 20.00 | G119: 95.00
A120: вафли
A121: Молоко кипяченое | C121: 100 | D121: 2.30 | E121: 2.50 | F121: 3.60 | G121: 46.00 | H121: №419 Дели2016
A122: Пудинг из творога с рисом с повидлом | C122: 110/10 | D122: 7.20 | E122: 8.32 | F122: 22.64 | G122: 194.00 | H122: № 250 Дели 2016
A123: Чай с сахаром | C123: 160/4 | D123: 0.05 | E123: 0.01 | F123: 4.42 | G123: 18.00 | H123: № 411 Дели2016
A124: Хлеб пшеничный 1с | C124: 20 | D124: 1.6 | E124: 0.2 | F124: 9.8 | G124: 47
A125: Итого: | C125: 425 | D125: =SUM(D119:D124) -> 12.15 | E125: =SUM(E119:E124) -> 13.03 | F125: =SUM(F119:F124) -> 60.46 | G125: =SUM(G119:G124) -> 400.00
A126: ВСЕГО: | C126: =C106+C109+C117+C125 -> 1363 | D126: =D106+D109+D117+D125 -> 37.56 | E126: =E106+E109+E117+E125 -> 40.91 | F126: =F106+F109+F117+F125 -> 185.23 | G126: =G106+G109+G117+G125 -> 1251.94
A128: День 5 - ый
A129: Прием пищи | C129: Выход блюда | D129: Пищевые вещества (г) | G129: Энергетическая | H129: № рецептуры
A130: Наименование блюд | G130: ценность
D131: белки | E131: жиры | F131: угл-ды | G131: Ккал
B132: ЗАВТРАК
A133: Каша полбяная молочная с маслом | C133: 150/3 | D133: 6.15 | E133: 5.92 | F133: 14.4 | G133: 135 | H133: ТТК №1
A134: Какао с молоком | C134: 160 | D134: 2.15 | E134: 2.29 | F134: 12.09 | G134: 65.16 | H134: №272 Парнер г. Уфа 2014
A135: Бутерброд с маслом сливочным | C135: 25/5 | D135: 1.9 | E135: 4.4 | F135: 13 | G135: 99 | H135: №1 Дели2010
A136: Итого: | C136: 343 | D136: =SUM(D132:D135) -> 10.20 | E136: =SUM(E132:E135) -> 12.61 | F136: =SUM(F132:F135) -> 39.49 | G136: =SUM(G132:G135) -> 299.16
A137: Сок | C137: 125 | D137: 0.30 | E137: 0.00 | F137: 10.00 | G137: 40.00 | H137: №418Дели2016
A138: вишневый
A139: Итого: | C139: 125 | D139: =SUM(D137) -> 0.30 | E139: =SUM(E137) -> 0.00 | F139: =SUM(F137) -> 10.00 | G139: =SUM(G137) -> 40.00
C140: 468 | D140: =D136+D139 -> 10.50 | E140: =E136+E139 -> 12.61 | F140: =F136+F139 -> 49.49 | G140: =G136+G139 -> 339.16
B141: ОБЕД
A142: Помидоры свежие порционно | C142: 30 | D142: 0.42 | E142: 0.06 | F142: 1.37 | G142: 9.00 | H142: стр563,сб1996
A143: Свекольник с курицей, со сметаной | C143: 150/10/5 | D143: 2.90 | E143: 4.53 | F143: 14.21 | G143: 109.00 | H143: №35,сб.Пермь2001
A144: Плов из курицы | C144: 130 | D144: 10 | E144: 11.5 | F144: 32 | G144: 272 | H144: №321 Дели 2016
A145: Компот из свежих яблок | C145: 150 | D145: 0.10 | E145: 0.10 | F145: 10.20 | G145: 42.10 | H145: № 390 Дели 2016
A146: Хлеб сельский | C146: 30 | D146: 1.5 | E146: 0.3 | F146: 14.3 | G146: 66
A147: Итого: | C147: 505 | D147: =SUM(D142:D146) -> 14.92 | E147: =SUM(E142:E146) -> 16.49 | F147: =SUM(F142:F146) -> 72.08 | G147: =SUM(G142:G146) -> 498.10
B148: ПОЛДНИК
A149: Кондитерские изделия | C149: 10 | D149: 1.00 | E149: 0.50 | F149: 7.50 | G149: 25.00
A150: крекер
A151: Кефир | C151: 100 | D151: 3.36 | E151: 2.5 | F151: 4.6 | G151: 61.8 | H151: №401Дели2010
A152: Капуста тушеная с мясом | C152: 110 | D152: 9.00 | E152: 11.00 | F152: 28.00 | G152: 248.00 | H152: №54-10М Сборник рецептур Москва
A153: Чай с сахаром и лимоном | C153: 150/4/4 | D153: 0.09 | E153: 0.01 | F153: 8.50 | G153: 34.50 | H153: №393Дели2010
A154: Хлеб пшеничный 1с | C154: 20 | D154: 1.6 | E154: 0.2 | F154: 9.8 | G154: 47
A155: Итого: | C155: 398 | D155: =SUM(D149:D154) -> 15.05 | E155: =SUM(E149:E154) -> 14.21 | F155: =SUM(F149:F154) -> 58.40 | G155: =SUM(G149:G154) -> 416.30
A156: ВСЕГО: | C156: =C136+C139+C147+C155 -> 1371 | D156: =D136+D139+D147+D155 -> 40.47 | E156: =E136+E139+E147+E155 -> 43.31 | F156: =F136+F139+F147+F155 -> 179.97 | G156: =G136+G139+G147+G155 -> 1253.56
C158: 2 НЕДЕЛЯ
A159: День 6 - ой
A160: Прием пищи | C160: Выход блюда | D160: Пищевые вещества (г) | G160: Энергетическая | H160: № рецептуры
A161: Наименование блюд | G161: ценность
D162: белки | E162: жиры | F162: угл-ды | G162: Ккал
B163: ЗАВТРАК
A164: Каша геркулесовая молочная с маслом | C164: 150/3 | D164: 5.00 | E164: 5.63 | F164: 16.50 | G164: 136.00 | H164: ТТК №5
A165: Чай с молоком,сахаром | C165: 160/4 | D165: 2.30 | E165: 2.00 | F165: 11.90 | G165: 74.80 | H165: №394Дели2010
A166: Бутерброд с сыром, маслом | C166: 25/5/3 | D166: 3.50 | E166: 5.95 | F166: 12.90 | G166: 119.60 | H166: №3Дели2010
A167: Итого: | C167: 350 | D167: =SUM(D163:D166) -> 10.80 | E167: =SUM(E163:E166) -> 13.58 | F167: =SUM(F163:F166) -> 41.30 | G167: =SUM(G163:G166) -> 330.40
A168: Фрукты свежие | C168: 85 | D168: 0.34 | E168: 0.34 | F168: 10.20 | G168: 45.00 | H168: №386Дели2016
A169: яблоко
A170: Итого: | C170: =SUM(C168) -> 85 | D170: =SUM(D168) -> 0.34 | E170: =SUM(E168) -> 0.34 | F170: =SUM(F168) -> 10.20 | G170: =SUM(G168) -> 45.00
C171: 435 | D171: =D167+D170 -> 11.14 | E171: 12.30 | F171: =F167+F170 -> 51.50 | G171: 365.00
B172: ОБЕД
A173: Салат из свежей капусты | C173: 30 | D173: 0.42 | E173: 1.50 | F173: 2.70 | G173: 26.00 | H173: №21, Дели 2016
A174: Рассольник ленинградский с мясными фрикадельками, со сметаной | C174: 150/10/5 | D174: 2.67 | E174: 3.38 | F174: 17.7 | G174: 112 | H174: №82 Дели 2016
A175: Биточки куриные "Солнышко" | C175: 50 | D175: 6.40 | E175: 8.50 | F175: 5.20 | G175: 123.00 | H175: ТТК №97Д
A176: Макароны отварные | C176: 110 | D176: 4.10 | E176: 3.00 | F176: 25.00 | G176: 143.40 | H176: №218 Дели 2016
A177: Кисель | C177: 150 | F177: 8.34 | G177: 33.34 | H177: №284Партнер2014
A178: Хлеб сельский | C178: 30 | D178: 1.5 | E178: 0.3 | F178: 14.3 | G178: 66
A179: Итого: | C179: 535 | D179: =SUM(D173:D178) -> 15.09 | E179: =SUM(E173:E178) -> 16.68 | F179: =SUM(F173:F178) -> 73.24 | G179: =SUM(G173:G178) -> 503.74
B180: ПОЛДНИК
A181: Булочка сдобная | C181: 40 | D181: 3.04 | E181: 3.84 | F181: 17.84 | G181: 118.4 | H181: № 257 Партнер2014 г. Уфа
A182: Ряженка | C182: 100 | D182: 3.00 | E182: 2.50 | F182: 4.20 | G182: 55.60 | H182: №401Дели2010
A183: Гречка с фаршем и овощами | C183: 110 | D183: 5.50 | E183: 7.50 | F183: 24.00 | G183: 185.00 | H183: ТТК №1630 от 10.11.2021
A184: Напиток из урюка | C184: 150 | D184: 0.50 | E184: 0.03 | F184: 12.50 | G184: 52.10 | H184: ТТК №68
A185: Хлеб пшеничный 1с | C185: 20 | D185: 1.6 | E185: 0.2 | F185: 9.8 | G185: 47
A186: Итого: | C186: 420 | D186: =SUM(D181:D185) -> 13.64 | E186: =SUM(E181:E185) -> 14.07 | F186: =SUM(F181:F185) -> 68.34 | G186: =SUM(G181:G185) -> 458.10
A187: ВСЕГО: | C187: =C167+C179+C186 -> 1305 | D187: =D167+D170+D179+D186 -> 39.87 | E187: =E167+E170+E179+E186 -> 44.67 | F187: =F167+F170+F179+F186 -> 193.08 | G187: =G167+G170+G179+G186 -> 1337.24
A188: День 7 - ой
A189: Прием пищи | C189: Выход блюда | D189: Пищевые вещества (г) | G189: Энергетическая | H189: № рецептуры
A190: Наименование блюд | G190: ценность
D191: белки | E191: жиры | F191: угл-ды | G191: Ккал
B192: ЗАВТРАК
A193: Каша ячневая молочная с маслом | C193: 150/3 | D193: 7.16 | E193: 6.63 | F193: 15.15 | G193: 149.00 | H193: ТТК №8
A194: Кофейный напиток с молоком | C194: 165/7 | D194: 1.16 | E194: 1.28 | F194: 11.4 | G194: 62 | H194: №270 Партнер г. Уфа 2014
A195: Бутерброд с маслом сливочным | C195: 25/5 | D195: 1.9 | E195: 4.4 | F195: 13 | G195: 99 | H195: №1 Дели2010
A196: Итого: | C196: 355 | D196: =SUM(D192:D195) -> 10.22 | E196: =SUM(E192:E195) -> 12.31 | F196: =SUM(F192:F195) -> 39.55 | G196: =SUM(G192:G195) -> 310.00
A197: Сок | C197: 125 | D197: 0.30 | E197: 0.00 | F197: 12.00 | G197: 49.00 | H197: №418Дели2016
A198: яблочный
A199: Итого: | C199: 125 | D199: =SUM(D197:D198) -> 0.30 | E199: =SUM(E197:E198) -> 0.00 | F199: =SUM(F197:F198) -> 12.00 | G199: =SUM(G197:G198) -> 49.00
C200: 480 | D200: =D196+D199 -> 10.52 | E200: =E196+E199 -> 12.31 | F200: =F196+F199 -> 51.55 | G200: =G196+G199 -> 359.00
B201: ОБЕД
A202: Салат из свеклы | C202: 30 | D202: 0.36 | E202: 1.50 | F202: 2.52 | G202: 25.00 | H202: №34, Дели2016
A203: Суп картофельный с горохом с курицей и гренками | C203: 150/10/10 | D203: 2.87 | E203: 3.20 | F203: 15.49 | G203: 102.00 | H203: ТТК№139
... 128 more rows

Sheet кал1-3
C1: Калорийность в разрезе
D2: ДОУ от 1 до 3 лет
A4: с отклонениями | B4: 1100-1500 | C4: 35,9-37,8-39,7 | D4: 40,18-42,3-44,4 | E4: 173,56-182,7-191,8 | F4: 1197-1260-1323
B5: Объемы порций | C5: Белки | D5: Жиры | E5: Угл-ды | F5: Энергетическая ценность
A6: 1 | B6: 1434.50 | C6: 37.54 | D6: 42.66 | E6: 189.43 | F6: 1295.84
A7: 2 | B7: 1364.00 | C7: 48.75 | D7: 43.80 | E7: 166.97 | F7: 1280.51
A8: 3 | B8: 1450.00 | C8: 38.47 | D8: 41.80 | E8: 189.34 | F8: 1293.53
A9: 4 | B9: 1363.00 | C9: 37.56 | D9: 40.91 | E9: 185.23 | F9: 1251.94
A10: 5 | B10: 1371.00 | C10: 40.47 | D10: 43.31 | E10: 179.97 | F10: 1253.56
A11: 6 | B11: 1305.00 | C11: 39.87 | D11: 44.67 | E11: 193.08 | F11: 1337.24
A12: 7 | B12: 1413.00 | C12: 37.54 | D12: 42.94 | E12: 182.70 | F12: 1263.60
A13: 8 | B13: 1391.00 | C13: 39.92 | D13: 43.37 | E13: 176.87 | F13: 1253.30
A14: 9 | B14: 1402.00 | C14: 37.16 | D14: 42.83 | E14: 182.08 | F14: 1281.75
A15: 10 | B15: 1446.00 | C15: 41.35 | D15: 42.94 | E15: 196.10 | F15: 1335.10
A17: Всего | B17: 13939.50 | C17: 398.63 | D17: 429.22 | E17: 1841.76 | F17: 12846.37
A18: В среднем | B18: 1393.95 | C18: 39.86 | D18: 42.92 | E18: 184.18 | F18: 1284.64

Sheet кал3-7
C5: Калорийность
D6: ДОУ от 3 до 7 лет
A7: с отклонениями | B7: 1350-1800 | C7: 46,17-48,6-51,03 | D7: 51,3-54-56,7 | E7: 223,154-234,9-246,644 | F7: 1539-1620-1701
B8: Объемы порций | C8: Белки | D8: Жиры | E8: Угл-ды | F8: Энергетическая ценность
A9: 1 | B9: 1738.50 | C9: 48.41 | D9: 52.97 | E9: 239.97 | F9: 1634.60
A10: 2 | B10: 1701.50 | C10: 60.22 | D10: 56.67 | E10: 224.78 | F10: 1652.60
A11: 3 | B11: 1768.50 | C11: 49.88 | D11: 53.26 | E11: 236.41 | F11: 1613.80
A12: 4 | B12: 1636.50 | C12: 47.25 | D12: 52.73 | E12: 238.78 | F12: 1609.10
A13: 5 | B13: 1631.50 | C13: 49.70 | D13: 53.36 | E13: 235.31 | F13: 1639.80
A14: 6 | B14: 1685.50 | C14: 48.97 | D14: 55.47 | E14: 237.79 | F14: 1651.00
A15: 7 | B15: 1675.50 | C15: 49.12 | D15: 53.77 | E15: 239.62 | F15: 1641.90
A16: 8 | B16: 1647.50 | C16: 49.81 | D16: 54.09 | E16: 225.93 | F16: 1592.30
A17: 9 | B17: 1710.50 | C17: 47.94 | D17: 54.66 | E17: 250.70 | F17: 1700.80
A18: 10 | B18: 1706.50 | C18: 49.35 | D18: 50.64 | E18: 235.81 | F18: 1615.10
A20: Всего | B20: 16902.00 | C20: 500.63 | D20: 537.63 | E20: 2365.10 | F20: 16351.00
A21: В среднем | B21: 1690.20 | C21: 50.06 | D21: 53.76 | E21: 236.51 | F21: 1635.10

Sheet свод1-3
B1: Расход продуктов ДОУ
D2: от 1 до 3 лет | K2: нетто
A3: Наименов. прод. | B3: 1 | C3: 2 | D3: 3 | E3: 4 | F3: 5 | G3: 6 | H3: 7 | I3: 8 | J3: 9 | K3: 10 | L3: Кол-во | M3: Среднее
A5: Сахар | B5: 20.40 | C5: 23.35 | D5: 22.10 | E5: 22.65 | F5: 19.05 | G5: 20.90 | H5: 22.35 | I5: 15.55 | J5: 23.65 | K5: 17.25 | L5: 207.25 | M5: 20.73
A6: Заварка | B6: 0.20 | C6: 0.30 | D6: 0.20 | E6: 0.20 | F6: 0.30 | G6: 0.20 | H6: 0.30 | I6: 0.20 | J6: 0.20 | K6: 0.30 | L6: 2.40 | M6: 0.24
A7: Яйцо | B7: 0.80 | C7: 5.70 | D7: 24.00 | E7: 5.72 | F7: 0.00 | G7: 6.40 | H7: 5.72 | I7: 2.00 | J7: 4.70 | K7: 98.62 | L7: 153.66 | M7: 15.37
A8: Дрожжи сухие | B8: 0.16 | C8: 0.00 | D8: 0.20 | E8: 0.00 | F8: 0.00 | G8: 0.30 | H8: 0.00 | I8: 0.16 | J8: 0.00 | K8: 0.16 | L8: 0.98 | M8: 0.10
A9: Батон нарезной | B9: 25.00 | C9: 25.00 | D9: 25.00 | E9: 25.00 | F9: 25.00 | G9: 25.00 | H9: 25.00 | I9: 25.00 | J9: 25.00 | K9: 25.00 | L9: 250.00 | M9: 25.00
A10: Хлеб пшеничный 1с | B10: 24.00 | C10: 29.00 | D10: 20.00 | E10: 20.00 | F10: 20.00 | G10: 20.00 | H10: 32.00 | I10: 20.00 | J10: 20.00 | K10: 20.00 | L10: 225.00 | M10: 22.50
A11: Хлеб сельский | B11: 30.00 | C11: 30.00 | D11: 30.00 | E11: 30.00 | F11: 30.00 | G11: 30.00 | H11: 30.00 | I11: 30.00 | J11: 30.00 | K11: 30.00 | L11: 300.00 | M11: 30.00
A12: Мука пшеничная | B12: 28.70 | C12: 0.00 | D12: 28.21 | E12: 0.00 | F12: 1.00 | G12: 24.00 | H12: 1.00 | I12: 21.30 | J12: 0.00 | K12: 19.85 | L12: 124.06 | M12: 12.41
A13: Кисель-концентрат | B13: 17.50 | C13: 0.00 | D13: 0.00 | E13: 17.50 | F13: 0.00 | G13: 17.50 | H13: 0.00 | I13: 0.00 | J13: 17.50 | K13: 0.00 | L13: 70.00 | M13: 7.00
A14: Макаронные изделия | B14: 0.00 | C14: 0.00 | D14: 38.50 | E14: 0.00 | F14: 0.00 | G14: 38.50 | H14: 0.00 | I14: 0.00 | J14: 0.00 | K14: 0.00 | L14: 77.00 | M14: 7.70
A15: Вермишель | B15: 6.00 | C15: 0.00 | D15: 0.00 | E15: 0.00 | F15: 0.00 | G15: 0.00 | H15: 0.00 | I15: 14.00 | J15: 0.00 | K15: 0.00 | L15: 20.00 | M15: 2.00
A16: Крупа рисовая | B16: 0.00 | C16: 11.00 | D16: 9.00 | E16: 9.78 | F16: 31.28 | G16: 0.00 | H16: 9.78 | I16: 27.70 | J16: 0.00 | K16: 31.90 | L16: 130.44 | M16: 13.04
A17: Крупа кукурузная | B17: 0.00 | C17: 0.00 | D17: 0.00 | E17: 0.00 | F17: 0.00 | G17: 0.00 | H17: 0.00 | I17: 0.00 | J17: 0.00 | K17: 0.00 | L17: 0.00 | M17: 0.00
A18: Крупа манная | B18: 17.00 | C18: 7.70 | D18: 0.00 | E18: 0.00 | F18: 0.00 | G18: 0.00 | H18: 0.00 | I18: 0.00 | J18: 7.70 | K18: 0.00 | L18: 32.40 | M18: 3.24
A19: Горох | B19: 0.00 | C19: 0.00 | D19: 0.00 | E19: 0.00 | F19: 0.00 | G19: 0.00 | H19: 15.01 | I19: 0.00 | J19: 0.00 | K19: 0.00 | L19: 15.01 | M19: 1.50
A20: Крупа пшенная | B20: 0.00 | C20: 8.00 | D20: 0.00 | E20: 23.00 | F20: 0.00 | G20: 0.00 | H20: 0.00 | I20: 0.00 | J20: 0.00 | K20: 23.00 | L20: 54.00 | M20: 5.40
A21: Крупа ячневая | B21: 0.00 | C21: 0.00 | D21: 0.00 | E21: 0.00 | F21: 0.00 | G21: 0.00 | H21: 19.00 | I21: 0.00 | J21: 0.00 | K21: 0.00 | L21: 19.00 | M21: 1.90
A22: Полба | B22: 0.00 | C22: 0.00 | D22: 0.00 | E22: 0.00 | F22: 19.00 | G22: 0.00 | H22: 0.00 | I22: 0.00 | J22: 19.00 | K22: 0.00 | L22: 38.00 | M22: 3.80
A23: Крупа перловая | B23: 0.00 | C23: 0.00 | D23: 0.00 | E23: 0.00 | F23: 0.00 | G23: 6.00 | H23: 0.00 | I23: 0.00 | J23: 0.00 | K23: 0.00 | L23: 6.00 | M23: 0.60
A24: Крупа геркулесовая | B24: 0.00 | C24: 0.00 | D24: 19.00 | E24: 0.00 | F24: 0.00 | G24: 19.00 | H24: 0.00 | I24: 0.00 | J24: 0.00 | K24: 0.00 | L24: 38.00 | M24: 3.80
A25: Крупа пшеничная | B25: 0.00 | C25: 0.00 | D25: 0.00 | E25: 0.00 | F25: 0.00 | G25: 0.00 | H25: 0.00 | I25: 0.00 | J25: 0.00 | K25: 0.00 | L25: 0.00 | M25: 0.00
A26: Крупа гречневая | B26: 27.50 | C26: 0.00 | D26: 0.00 | E26: 0.00 | F26: 0.00 | G26: 21.00 | H26: 0.00 | I26: 0.00 | J26: 9.00 | K26: 0.00 | L26: 57.50 | M26: 5.75
A27: Картофель | B27: 118.30 | C27: 124.43 | D27: 45.00 | E27: 105.10 | F27: 25.90 | G27: 45.00 | H27: 153.90 | I27: 45.30 | J27: 139.43 | K27: 30.00 | L27: 832.36 | M27: 83.24
A28: Морковь | B28: 18.33 | C28: 6.00 | D28: 22.90 | E28: 36.00 | F28: 21.70 | G28: 31.50 | H28: 6.00 | I28: 37.60 | J28: 36.00 | K28: 20.50 | L28: 236.53 | M28: 23.65
A29: Лук репчатый | B29: 14.60 | C29: 7.00 | D29: 21.82 | E29: 17.00 | F29: 19.38 | G29: 16.19 | H29: 14.90 | I29: 25.40 | J29: 6.00 | K29: 17.90 | L29: 160.19 | M29: 16.02
A30: Свекла | B30: 0.00 | C30: 28.50 | D30: 0.00 | E30: 0.00 | F30: 38.30 | G30: 0.00 | H30: 28.50 | I30: 24.00 | J30: 0.00 | K30: 0.00 | L30: 119.30 | M30: 11.93
A31: Капуста свежая | B31: 24.30 | C31: 12.00 | D31: 137.12 | E31: 30.00 | F31: 84.04 | G31: 24.30 | H31: 0.00 | I31: 36.40 | J31: 0.00 | K31: 12.00 | L31: 360.16 | M31: 36.02
A32: Икра кабачковая | B32: 0.00 | C32: 0.00 | D32: 0.00 | E32: 0.00 | F32: 0.00 | G32: 0.00 | H32: 0.00 | I32: 0.00 | J32: 0.00 | K32: 0.00 | L32: 0.00 | M32: 0.00
A33: Огурцы соленые | B33: 0.00 | C33: 0.00 | D33: 0.00 | E33: 0.00 | F33: 0.00 | G33: 9.00 | H33: 0.00 | I33: 0.00 | J33: 0.00 | K33: 0.00 | L33: 9.00 | M33: 0.90
A34: Помидоры свежие | B34: 0.00 | C34: 0.00 | D34: 30.00 | E34: 0.00 | F34: 30.00 | G34: 0.00 | H34: 0.00 | I34: 30.00 | J34: 0.00 | K34: 30.00 | L34: 120.00 | M34: 12.00
A35: Огурцы свежие | B35: 0.00 | C35: 0.00 | D35: 0.00 | E35: 0.00 | F35: 0.00 | G35: 0.00 | H35: 0.00 | I35: 0.00 | J35: 0.00 | K35: 0.00 | L35: 0.00 | M35: 0.00
A36: перец | B36: 0.00 | C36: 0.00 | D36: 0.00 | E36: 0.00 | F36: 0.00 | G36: 0.00 | H36: 0.00 | I36: 0.00 | J36: 0.00 | K36: 0.00 | L36: 0.00 | M36: 0.00
A37: Томат-паста | B37: 0.00 | C37: 0.00 | D37: 4.00 | E37: 0.00 | F37: 0.00 | G37: 0.00 | H37: 0.00 | I37: 0.00 | J37: 0.00 | K37: 2.00 | L37: 6.00 | M37: 0.60
A38: Масло сливочное | B38: 10.50 | C38: 9.00 | D38: 19.80 | E38: 8.79 | F38: 11.00 | G38: 11.80 | H38: 14.49 | I38: 8.40 | J38: 11.00 | K38: 14.60 | L38: 119.38 | M38: 11.94
A39: Масло растительное | B39: 13.00 | C39: 4.50 | D39: 2.58 | E39: 7.00 | F39: 7.00 | G39: 10.20 | H39: 3.50 | I39: 8.10 | J39: 1.90 | K39: 8.40 | L39: 66.18 | M39: 6.62
A40: Фрукты свежие | B40: 0.00 | C40: 0.00 | D40: 0.00 | E40: 85.00 | F40: 0.00 | G40: 85.00 | H40: 0.00 | I40: 85.00 | J40: 0.00 | K40: 85.00 | L40: 340.00 | M40: 34.00
A41: Яблоки | B41: 0.00 | C41: 30.00 | D41: 0.00 | E41: 0.00 | F41: 30.00 | G41: 0.00 | H41: 30.00 | I41: 0.00 | J41: 0.00 | K41: 0.00 | L41: 90.00 | M41: 9.00
A42: крыжовник зам. | B42: 0.00 | C42: 0.00 | D42: 0.00 | E42: 0.00 | F42: 0.00 | G42: 0.00 | H42: 0.00 | I42: 0.00 | J42: 0.00 | K42: 0.00 | L42: 0.00 | M42: 0.00
A43: Лимон | B43: 0.00 | C43: 4.00 | D43: 0.00 | E43: 0.00 | F43: 4.00 | G43: 0.00 | H43: 4.00 | I43: 0.00 | J43: 0.00 | K43: 4.00 | L43: 16.00 | M43: 1.60
A44: Апельсин | B44: 0.00 | C44: 0.00 | D44: 0.00 | E44: 0.00 | F44: 0.00 | G44: 0.00 | H44: 0.00 | I44: 0.00 | J44: 0.00 | K44: 0.00 | L44: 0.00 | M44: 0.00
A45: Сок | B45: 125.00 | C45: 0.00 | D45: 125.00 | E45: 0.00 | F45: 125.00 | G45: 0.00 | H45: 125.00 | I45: 0.00 | J45: 125.00 | K45: 0.00 | L45: 625.00 | M45: 62.50
A46: Фруктовое пюре | B46: 0.00 | C46: 125.00 | D46: 0.00 | E46: 0.00 | F46: 0.00 | G46: 0.00 | H46: 0.00 | I46: 0.00 | J46: 0.00 | K46: 0.00 | L46: 125.00 | M46: 12.50
A47: Сухофрукты | B47: 0.00 | C47: 0.00 | D47: 15.00 | E47: 0.00 | F47: 0.00 | G47: 0.00 | H47: 0.00 | I47: 0.00 | J47: 0.00 | K47: 15.00 | L47: 30.00 | M47: 3.00
A48: Урюк | B48: 12.50 | C48: 0.00 | D48: 0.00 | E48: 0.00 | F48: 0.00 | G48: 12.50 | H48: 0.00 | I48: 12.50 | J48: 0.00 | K48: 0.00 | L48: 37.50 | M48: 3.75
A49: повидло фруктовое | B49: 0.00 | C49: 0.00 | D49: 0.00 | E49: 10.00 | F49: 0.00 | G49: 0.00 | H49: 10.00 | I49: 16.00 | J49: 0.00 | K49: 0.00 | L49: 36.00 | M49: 3.60
A50: Шиповник порошок | B50: 0.00 | C50: 0.00 | D50: 2.25 | E50: 0.00 | F50: 0.00 | G50: 0.00 | H50: 0.00 | I50: 2.25 | J50: 0.00 | K50: 0.00 | L50: 4.50 | M50: 0.45
A51: Молоко | B51: 75.00 | C51: 275.70 | D51: 117.00 | E51: 240.00 | F51: 135.00 | G51: 120.60 | H51: 240.00 | I51: 136.00 | J51: 165.70 | K51: 277.20 | L51: 1782.20 | M51: 178.22
A52: Кефир | B52: 0.00 | C52: 0.00 | D52: 0.00 | E52: 0.00 | F52: 100.00 | G52: 0.00 | H52: 0.00 | I52: 0.00 | J52: 100.00 | K52: 0.00 | L52: 200.00 | M52: 20.00
A53: Ряженка | B53: 0.00 | C53: 0.00 | D53: 100.00 | E53: 0.00 | F53: 0.00 | G53: 100.00 | H53: 0.00 | I53: 0.00 | J53: 0.00 | K53: 0.00 | L53: 200.00 | M53: 20.00
A54: Катык | B54: 100.00 | C54: 0.00 | D54: 0.00 | E54: 0.00 | F54: 0.00 | G54: 0.00 | H54: 0.00 | I54: 100.00 | J54: 0.00 | K54: 0.00 | L54: 200.00 | M54: 20.00
A55: Молоко сгущенное | B55: 0.00 | C55: 10.00 | D55: 0.00 | E55: 0.00 | F55: 0.00 | G55: 0.00 | H55: 0.00 | I55: 0.00 | J55: 10.00 | K55: 0.00 | L55: 20.00 | M55: 2.00
A56: Сметана | B56: 0.00 | C56: 14.50 | D56: 5.13 | E56: 7.88 | F56: 5.00 | G56: 5.00 | H56: 6.63 | I56: 5.00 | J56: 9.50 | K56: 13.23 | L56: 71.87 | M56: 7.19
A57: Творог | B57: 0.00 | C57: 71.33 | D57: 0.00 | E57: 71.50 | F57: 0.00 | G57: 0.00 | H57: 71.50 | I57: 0.00 | J57: 71.33 | K57: 0.00 | L57: 285.66 | M57: 28.57
A58: Говядина | B58: 0.00 | C58: 0.00 | D58: 0.00 | E58: 34.00 | F58: 0.00 | G58: 0.00 | H58: 0.00 | I58: 33.80 | J58: 0.00 | K58: 0.00 | L58: 67.80 | M58: 6.78
A59: Фарш из говядины | B59: 34.30 | C59: 11.40 | D59: 20.00 | E59: 0.00 | F59: 38.50 | G59: 47.80 | H59: 50.20 | I59: 0.00 | J59: 0.00 | K59: 0.00 | L59: 202.20 | M59: 20.22
A60: Цыплята | B60: 42.70 | C60: 36.40 | D60: 14.70 | E60: 0.00 | F60: 69.95 | G60: 39.10 | H60: 14.70 | I60: 31.50 | J60: 14.70 | K60: 0.00 | L60: 263.75 | M60: 26.38
A61: Индейка филе | B61: 0.00 | C61: 0.00 | D61: 0.00 | E61: 0.00 | F61: 0.00 | G61: 0.00 | H61: 0.00 | I61: 0.00 | J61: 0.00 | K61: 0.00 | L61: 0.00 | M61: 0.00
A62: куриная грудка | B62: 0.00 | C62: 0.00 | D62: 0.00 | E62: 0.00 | F62: 0.00 | G62: 0.00 | H62: 0.00 | I62: 0.00 | J62: 0.00 | K62: 56.90 | L62: 56.90 | M62: 5.69
A63: Сыр | B63: 0.00 | C63: 5.00 | D63: 0.00 | E63: 5.00 | F63: 0.00 | G63: 5.00 | H63: 0.00 | I63: 5.00 | J63: 0.00 | K63: 19.16 | L63: 39.16 | M63: 3.92
A64: Ежики рыбные с рисом пф 74гр | B64: 0.00 | C64: 0.00 | D64: 0.00 | E64: 0.00 | F64: 0.00 | G64: 0.00 | H64: 0.00 | I64: 0.00 | J64: 1.00 | K64: 0.00 | L64: 1.00 | M64: 0.10
A65: Кофейный напиток | B65: 0.00 | C65: 0.00 | D65: 0.00 | E65: 1.30 | F65: 0.00 | G65: 0.00 | H65: 1.30 | I65: 0.00 | J65: 0.00 | K65: 1.30 | L65: 3.90 | M65: 0.39
A66: Какао-порошок | B66: 0.00 | C66: 1.30 | D66: 0.00 | E66: 0.00 | F66: 1.30 | G66: 0.00 | H66: 0.00 | I66: 0.00 | J66: 1.30 | K66: 0.00 | L66: 3.90 | M66: 0.39
A67: печенье КП | B67: 0.00 | C67: 0.00 | D67: 0.00 | E67: 0.00 | F67: 0.00 | G67: 0.00 | H67: 0.00 | I67: 0.00 | J67: 0.00 | K67: 0.00 | L67: 0.00 | M67: 0.00
A68: крекер | B68: 0.00 | C68: 0.00 | D68: 0.00 | E68: 0.00 | F68: 10.00 | G68: 0.00 | H68: 0.00 | I68: 0.00 | J68: 10.00 | K68: 0.00 | L68: 20.00 | M68: 2.00
A69: Соль | B69: 2.70 | C69: 2.00 | D69: 3.44 | E69: 1.50 | F69: 2.30 | G69: 3.20 | H69: 2.50 | I69: 5.30 | J69: 2.50 | K69: 3.18 | L69: 28.62 | M69: 2.86
A70: печенье КП | B70: 0.00 | C70: 0.00 | D70: 0.00 | E70: 0.00 | F70: 0.00 | G70: 0.00 | H70: 0.00 | I70: 0.00 | J70: 0.00 | K70: 0.00 | L70: 0.00 | M70: 0.00
A71: Сухари панировочные | B71: 0.00 | C71: 5.00 | D71: 0.00 | E71: 0.00 | F71: 0.00 | G71: 4.00 | H71: 1.70 | I71: 0.00 | J71: 0.00 | K71: 0.00 | L71: 10.70 | M71: 1.07
A72: вафли | B72: 0.00 | C72: 0.00 | D72: 0.00 | E72: 21.00 | F72: 0.00 | G72: 0.00 | H72: 0.00 | I72: 0.00 | J72: 0.00 | K72: 0.00 | L72: 21.00 | M72: 2.10
A73: Крупы, бобовые | B73: 44.50 | C73: 26.70 | D73: 28.00 | E73: 32.78 | F73: 50.28 | G73: 46.00 | H73: 43.79 | I73: 27.70 | J73: 35.70 | K73: 54.90 | L73: 390.35 | M73: 39.04
A74: Овощи разные | B74: 57.23 | C74: 53.50 | D74: 215.84 | E74: 83.00 | F74: 193.42 | G74: 80.99 | H74: 49.40 | I74: 153.40 | J74: 42.00 | K74: 82.40 | L74: 1011.18 | M74: 101.12
A75: Фрукты | B75: 0.00 | C75: 34.00 | D75: 0.00 | E75: 95.00 | F75: 34.00 | G75: 85.00 | H75: 44.00 | I75: 101.00 | J75: 0.00 | K75: 89.00 | L75: 482.00 | M75: 48.20
A76: Фрукты сухие | B76: 12.50 | C76: 125.00 | D76: 17.25 | E76: 0.00 | F76: 0.00 | G76: 12.50 | H76: 0.00 | I76: 14.75 | J76: 0.00 | K76: 15.00 | L76: 197.00 | M76: 19.70
A77: Молочные прод. | B77: 175.00 | C77: 285.70 | D77: 217.00 | E77: 240.00 | F77: 235.00 | G77: 220.60 | H77: 240.00 | I77: 236.00 | J77: 275.70 | K77: 277.20 | L77: 2402.20 | M77: 240.22
A78: Говядина | B78: 34.30 | C78: 11.40 | D78: 20.00 | E78: 34.00 | F78: 38.50 | G78: 47.80 | H78: 50.20 | I78: 33.80 | J78: 0.00 | K78: 0.00 | L78: 270.00 | M78: 27.00
A79: птица | B79: 42.70 | C79: 36.40 | D79: 14.70 | E79: 0.00 | F79: 69.95 | G79: 39.10 | H79: 14.70 | I79: 31.50 | J79: 14.70 | K79: 56.90 | L79: 320.65 | M79: 32.07
A80: Макаронные изделия | B80: 6.00 | C80: 0.00 | D80: 38.50 | E80: 0.00 | F80: 0.00 | G80: 38.50 | H80: 0.00 | I80: 14.00 | J80: 0.00 | K80: 0.00 | L80: 97.00 | M80: 9.70
A81: Хлеб пшеничный | B81: 49.00 | C81: 54.00 | D81: 45.00 | E81: 45.00 | F81: 45.00 | G81: 45.00 | H81: 57.00 | I81: 45.00 | J81: 45.00 | K81: 45.00 | L81: 475.00 | M81: 47.50
A82: Кондитерские изделия | B82: 0.00 | C82: 0.00 | D82: 0.00 | E82: 21.00 | F82: 10.00 | G82: 0.00 | H82: 0.00 | I82: 0.00 | J82: 10.00 | K82: 0.00 | L82: 41.00 | M82: 4.10
A83: Примечание: расход хлеба пшеничного с учетом расхода сухарей панировочных
B84: Расход продуктов ДОУ
D85: от 1 до 3 лет | K85: брутто
A87: Наименов. прод. | B87: 1 | C87: 2 | D87: 3 | E87: 4 | F87: 5 | G87: 6 | H87: 7 | I87: 8 | J87: 9 | K87: 10 | L87: Кол-во | M87: Среднее
A89: Сахар | B89: 20.40 | C89: 23.35 | D89: 22.10 | E89: 22.65 | F89: 19.05 | G89: 20.90 | H89: 22.35 | I89: 15.55 | J89: 23.65 | K89: 17.25 | L89: 207.25 | M89: 20.73
A90: Заварка | B90: 0.20 | C90: 0.30 | D90: 0.20 | E90: 0.20 | F90: 0.30 | G90: 0.20 | H90: 0.30 | I90: 0.20 | J90: 0.20 | K90: 0.30 | L90: 2.40 | M90: 0.24
A91: Яйцо | B91: 0.80 | C91: 5.70 | D91: 24.00 | E91: 5.72 | F91: 0.00 | G91: 6.40 | H91: 5.72 | I91: 2.00 | J91: 4.70 | K91: 98.62 | L91: 153.66 | M91: 15.37
A92: Дрожжи сухие | B92: 0.16 | C92: 0.00 | D92: 0.20 | E92: 0.00 | F92: 0.00 | G92: 0.30 | H92: 0.00 | I92: 0.16 | J92: 0.00 | K92: 0.16 | L92: 0.98 | M92: 0.10
A93: Батон нарезной | B93: 25.00 | C93: 25.00 | D93: 25.00 | E93: 25.00 | F93: 25.00 | G93: 25.00 | H93: 25.00 | I93: 25.00 | J93: 25.00 | K93: 25.00 | L93: 250.00 | M93: 25.00
A94: Хлеб пшеничный 1с | B94: 24.00 | C94: 29.00 | D94: 20.00 | E94: 20.00 | F94: 20.00 | G94: 20.00 | H94: 34.40 | I94: 20.00 | J94: 20.00 | K94: 20.00 | L94: 227.40 | M94: 22.74
A95: Хлеб сельский | B95: 30.00 | C95: 30.00 | D95: 30.00 | E95: 30.00 | F95: 30.00 | G95: 30.00 | H95: 30.00 | I95: 30.00 | J95: 30.00 | K95: 30.00 | L95: 300.00 | M95: 30.00
A96: Мука пшеничная | B96: 28.70 | C96: 0.00 | D96: 28.21 | E96: 0.00 | F96: 1.00 | G96: 24.00 | H96: 1.00 | I96: 21.30 | J96: 0.00 | K96: 19.85 | L96: 124.06 | M96: 12.41
A97: Кисель-концентрат | B97: 17.50 | C97: 0.00 | D97: 0.00 | E97: 17.50 | F97: 0.00 | G97: 17.50 | H97: 0.00 | I97: 0.00 | J97: 17.50 | K97: 0.00 | L97: 70.00 | M97: 7.00
A98: Макаронные изделия | B98: 0.00 | C98: 0.00 | D98: 38.50 | E98: 0.00 | F98: 0.00 | G98: 38.50 | H98: 0.00 | I98: 0.00 | J98: 0.00 | K98: 0.00 | L98: 77.00 | M98: 7.70
A99: Вермишель | B99: 6.00 | C99: 0.00 | D99: 0.00 | E99: 0.00 | F99: 0.00 | G99: 0.00 | H99: 0.00 | I99: 14.00 | J99: 0.00 | K99: 0.00 | L99: 20.00 | M99: 2.00
A100: Крупа рисовая | B100: 0.00 | C100: 11.00 | D100: 9.00 | E100: 9.78 | F100: 31.28 | G100: 0.00 | H100: 9.78 | I100: 27.70 | J100: 0.00 | K100: 31.90 | L100: 130.44 | M100: 13.04
A101: Крупа кукурузная | B101: 0.00 | C101: 0.00 | D101: 0.00 | E101: 0.00 | F101: 0.00 | G101: 0.00 | H101: 0.00 | I101: 0.00 | J101: 0.00 | K101: 0.00 | L101: 0.00 | M101: 0.00
A102: Крупа манная | B102: 17.00 | C102: 7.70 | D102: 0.00 | E102: 0.00 | F102: 0.00 | G102: 0.00 | H102: 0.00 | I102: 0.00 | J102: 7.70 | K102: 0.00 | L102: 32.40 | M102: 3.24
A103: Горох | B103: 0.00 | C103: 0.00 | D103: 0.00 | E103: 0.00 | F103: 0.00 | G103: 0.00 | H103: 15.20 | I103: 0.00 | J103: 0.00 | K103: 0.00 | L103: 15.20 | M103: 1.52
A104: Крупа пшенная | B104: 0.00 | C104: 8.00 | D104: 0.00 | E104: 23.00 | F104: 0.00 | G104: 0.00 | H104: 0.00 | I104: 0.00 | J104: 0.00 | K104: 23.00 | L104: 54.00 | M104: 5.40
A105: Крупа ячневая | B105: 0.00 | C105: 0.00 | D105: 0.00 | E105: 0.00 | F105: 0.00 | G105: 0.00 | H105: 19.00 | I105: 0.00 | J105: 0.00 | K105: 0.00 | L105: 19.00 | M105: 1.90
A106: Полба | B106: 0.00 | C106: 0.00 | D106: 0.00 | E106: 0.00 | F106: 19.00 | G106: 0.00 | H106: 0.00 | I106: 0.00 | J106: 19.00 | K106: 0.00 | L106: 38.00 | M106: 3.80
A107: Крупа перловая | B107: 0.00 | C107: 0.00 | D107: 0.00 | E107: 0.00 | F107: 0.00 | G107: 6.00 | H107: 0.00 | I107: 0.00 | J107: 0.00 | K107: 0.00 | L107: 6.00 | M107: 0.60
A108: Крупа геркулесовая | B108: 0.00 | C108: 0.00 | D108: 19.00 | E108: 0.00 | F108: 0.00 | G108: 19.00 | H108: 0.00 | I108: 0.00 | J108: 0.00 | K108: 0.00 | L108: 38.00 | M108: 3.80
A109: Крупа пшеничная | B109: 0.00 | C109: 0.00 | D109: 0.00 | E109: 0.00 | F109: 0.00 | G109: 0.00 | H109: 0.00 | I109: 0.00 | J109: 0.00 | K109: 0.00 | L109: 0.00 | M109: 0.00
A110: Крупа гречневая | B110: 27.50 | C110: 0.00 | D110: 0.00 | E110: 0.00 | F110: 0.00 | G110: 21.00 | H110: 0.00 | I110: 0.00 | J110: 9.00 | K110: 0.00 | L110: 57.50 | M110: 5.75
A111: Картофель | B111: 157.34 | C111: 165.50 | D111: 59.85 | E111: 139.74 | F111: 34.44 | G111: 75.15 | H111: 204.68 | I111: 60.25 | J111: 185.44 | K111: 39.90 | L111: 1122.29 | M111: 112.23
A112: Морковь | B112: 23.50 | C112: 7.98 | D112: 30.46 | E112: 47.88 | F112: 28.86 | G112: 41.03 | H112: 7.98 | I112: 49.97 | J112: 47.88 | K112: 27.26 | L112: 312.79 | M112: 31.28
A113: Лук репчатый | B113: 17.34 | C113: 8.33 | D113: 25.97 | E113: 20.24 | F113: 23.07 | G113: 19.33 | H113: 17.74 | I113: 30.21 | J113: 7.14 | K113: 21.31 | L113: 190.68 | M113: 19.07
A114: Свекла | B114: 0.00 | C114: 38.76 | D114: 0.00 | E114: 0.00 | F114: 52.08 | G114: 0.00 | H114: 38.76 | I114: 32.64 | J114: 0.00 | K114: 0.00 | L114: 162.24 | M114: 16.22
A115: Капуста свежая | B115: 30.37 | C115: 15.00 | D115: 171.40 | E115: 37.50 | F115: 105.05 | G115: 30.37 | H115: 0.00 | I115: 45.50 | J115: 0.00 | K115: 15.00 | L115: 450.19 | M115: 45.02
A116: Икра кабачковая | B116: 0.00 | C116: 0.00 | D116: 0.00 | E116: 0.00 | F116: 0.00 | G116: 0.00 | H116: 0.00 | I116: 0.00 | J116: 0.00 | K116: 0.00 | L116: 0.00 | M116: 0.00
A117: Огурцы соленые | B117: 0.00 | C117: 0.00 | D117: 0.00 | E117: 0.00 | F117: 0.00 | G117: 16.36 | H117: 0.00 | I117: 0.00 | J117: 0.00 | K117: 0.00 | L117: 16.36 | M117: 1.64
A118: Помидоры свежие | B118: 0.00 | C118: 0.00 | D118: 30.60 | E118: 0.00 | F118: 30.60 | G118: 0.00 | H118: 0.00 | I118: 30.60 | J118: 0.00 | K118: 30.60 | L118: 122.40 | M118: 12.24
A119: Огурцы свежие | B119: 0.00 | C119: 0.00 | D119: 0.00 | E119: 0.00 | F119: 0.00 | G119: 0.00 | H119: 0.00 | I119: 0.00 | J119: 0.00 | K119: 0.00 | L119: 0.00 | M119: 0.00
A120: перец | B120: 0.00 | C120: 0.00 | D120: 0.00 | E120: 0.00 | F120: 0.00 | G120: 0.00 | H120: 0.00 | I120: 0.00 | J120: 0.00 | K120: 0.00 | L120: 0.00 | M120: 0.00
A121: Томат-паста | B121: 0.00 | C121: 0.00 | D121: 4.00 | E121: 0.00 | F121: 0.00 | G121: 0.00 | H121: 0.00 | I121: 0.00 | J121: 0.00 | K121: 2.00 | L121: 6.00 | M121: 0.60
A122: Масло сливочное | B122: 10.50 | C122: 9.00 | D122: 19.80 | E122: 8.79 | F122: 11.00 | G122: 11.80 | H122: 14.49 | I122: 8.40 | J122: 11.00 | K122: 14.60 | L122: 119.38 | M122: 11.94
A123: Масло растительное | B123: 13.00 | C123: 4.50 | D123: 2.58 | E123: 7.00 | F123: 7.00 | G123: 10.20 | H123: 3.50 | I123: 8.10 | J123: 1.90 | K123: 8.40 | L123: 66.18 | M123: 6.62
A124: Фрукты свежие | B124: 0.00 | C124: 0.00 | D124: 0.00 | E124: 96.90 | F124: 0.00 | G124: 96.90 | H124: 0.00 | I124: 96.90 | J124: 0.00 | K124: 96.90 | L124: 387.60 | M124: 38.76
A125: Яблоки | B125: 0.00 | C125: 34.00 | D125: 0.00 | E125: 0.00 | F125: 34.00 | G125: 0.00 | H125: 34.00 | I125: 0.00 | J125: 0.00 | K125: 0.00 | L125: 102.00 | M125: 10.20
A126: крыжовник зам. | B126: 0.00 | C126: 0.00 | D126: 0.00 | E126: 0.00 | F126: 0.00 | G126: 0.00 | H126: 0.00 | I126: 0.00 | J126: 0.00 | K126: 0.00 | L126: 0.00 | M126: 0.00
A127: Лимон | B127: 0.00 | C127: 4.10 | D127: 0.00 | E127: 0.00 | F127: 4.10 | G127: 0.00 | H127: 4.10 | I127: 0.00 | J127: 0.00 | K127: 4.10 | L127: 16.40 | M127: 1.64
A128: Апельсин | B128: 0.00 | C128: 0.00 | D128: 0.00 | E128: 0.00 | F128: 0.00 | G128: 0.00 | H128: 0.00 | I128: 0.00 | J128: 0.00 | K128: 0.00 | L128: 0.00 | M128: 0.00
A129: Сок | B129: 125.00 | C129: 0.00 | D129: 125.00 | E129: 0.00 | F129: 125.00 | G129: 0.00 | H129: 125.00 | I129: 0.00 | J129: 125.00 | K129: 0.00 | L129: 625.00 | M129: 62.50
A130: Фруктовое пюре | B130: 0.00 | C130: 125.00 | D130: 0.00 | E130: 0.00 | F130: 0.00 | G130: 0.00 | H130: 0.00 | I130: 0.00 | J130: 0.00 | K130: 0.00 | L130: 125.00 | M130: 12.50
A131: Сухофрукты | B131: 0.00 | C131: 0.00 | D131: 15.30 | E131: 0.00 | F131: 0.00 | G131: 0.00 | H131: 0.00 | I131: 0.00 | J131: 0.00 | K131: 15.30 | L131: 30.60 | M131: 3.06
A132: Урюк | B132: 12.75 | C132: 0.00 | D132: 0.00 | E132: 0.00 | F132: 0.00 | G132: 12.75 | H132: 0.00 | I132: 12.75 | J132: 0.00 | K132: 0.00 | L132: 38.25 | M132: 3.83
A133: повидло фруктовое | B133: 0.00 | C133: 0.00 | D133: 0.00 | E133: 10.00 | F133: 0.00 | G133: 0.00 | H133: 10.00 | I133: 16.00 | J133: 0.00 | K133: 0.00 | L133: 36.00 | M133: 3.60
A134: Шиповник порошок | B134: 0.00 | C134: 0.00 | D134: 2.25 | E134: 0.00 | F134: 0.00 | G134: 0.00 | H134: 0.00 | I134: 2.25 | J134: 0.00 | K134: 0.00 | L134: 4.50 | M134: 0.45
A135: Молоко | B135: 75.00 | C135: 281.94 | D135: 117.00 | E135: 245.36 | F135: 135.00 | G135: 120.60 | H135: 245.36 | I135: 136.00 | J135: 166.58 | K135: 282.56 | L135: 1805.40 | M135: 180.54
A136: Кефир | B136: 0.00 | C136: 0.00 | D136: 0.00 | E136: 0.00 | F136: 103.50 | G136: 0.00 | H136: 0.00 | I136: 0.00 | J136: 103.50 | K136: 0.00 | L136: 207.00 | M136: 20.70
A137: Ряженка | B137: 0.00 | C137: 0.00 | D137: 103.64 | E137: 0.00 | F137: 0.00 | G137: 103.64 | H137: 0.00 | I137: 0.00 | J137: 0.00 | K137: 0.00 | L137: 207.28 | M137: 20.73
A138: Катык | B138: 103.50 | C138: 0.00 | D138: 0.00 | E138: 0.00 | F138: 0.00 | G138: 0.00 | H138: 0.00 | I138: 103.50 | J138: 0.00 | K138: 0.00 | L138: 207.00 | M138: 20.70
A139: Молоко сгущенное | B139: 0.00 | C139: 10.00 | D139: 0.00 | E139: 0.00 | F139: 0.00 | G139: 0.00 | H139: 0.00 | I139: 0.00 | J139: 10.00 | K139: 0.00 | L139: 20.00 | M139: 2.00
A140: Сметана | B140: 0.00 | C140: 14.50 | D140: 5.13 | E140: 7.88 | F140: 5.00 | G140: 5.00 | H140: 6.63 | I140: 5.00 | J140: 9.50 | K140: 13.30 | L140: 71.94 | M140: 7.19
A141: Творог | B141: 0.00 | C141: 72.28 | D141: 0.00 | E141: 72.52 | F141: 0.00 | G141: 0.00 | H141: 72.52 | I141: 0.00 | J141: 72.28 | K141: 0.00 | L141: 289.60 | M141: 28.96
A142: Говядина | B142: 0.00 | C142: 0.00 | D142: 0.00 | E142: 34.00 | F142: 0.00 | G142: 0.00 | H142: 0.00 | I142: 33.80 | J142: 0.00 | K142: 0.00 | L142: 67.80 | M142: 6.78
A143: Фарш из говядины | B143: 34.30 | C143: 11.40 | D143: 20.00 | E143: 0.00 | F143: 38.50 | G143: 47.80 | H143: 50.20 | I143: 0.00 | J143: 0.00 | K143: 0.00 | L143: 202.20 | M143: 20.22
A144: Цыплята | B144: 65.69 | C144: 56.00 | D144: 21.65 | E144: 0.00 | F144: 107.62 | G144: 60.15 | H144: 22.61 | I144: 48.46 | J144: 22.61 | K144: 0.00 | L144: 404.79 | M144: 40.48
A145: Индейка филе | B145: 0.00 | C145: 0.00 | D145: 0.00 | E145: 0.00 | F145: 0.00 | G145: 0.00 | H145: 0.00 | I145: 0.00 | J145: 0.00 | K145: 0.00 | L145: 0.00 | M145: 0.00
A146: куриная грудка | B146: 0.00 | C146: 0.00 | D146: 0.00 | E146: 0.00 | F146: 0.00 | G146: 0.00 | H146: 0.00 | I146: 0.00 | J146: 0.00 | K146: 75.87 | L146: 75.87 | M146: 7.59
A147: Сыр | B147: 0.00 | C147: 5.10 | D147: 0.00 | E147: 5.10 | F147: 0.00 | G147: 5.10 | H147: 0.00 | I147: 5.10 | J147: 0.00 | K147: 19.50 | L147: 39.90 | M147: 3.99
A148: Ежики рыбные с рисом пф 74гр | B148: 0.00 | C148: 0.00 | D148: 0.00 | E148: 0.00 | F148: 0.00 | G148: 0.00 | H148: 0.00 | I148: 0.00 | J148: 1.00 | K148: 0.00 | L148: 1.00 | M148: 0.10
A149: Кофейный напиток | B149: 0.00 | C149: 0.00 | D149: 0.00 | E149: 1.30 | F149: 0.00 | G149: 0.00 | H149: 1.30 | I149: 0.00 | J149: 0.00 | K149: 1.30 | L149: 3.90 | M149: 0.39
A150: Какао-порошок | B150: 0.00 | C150: 1.30 | D150: 0.00 | E150: 0.00 | F150: 1.30 | G150: 0.00 | H150: 0.00 | I150: 0.00 | J150: 1.30 | K150: 0.00 | L150: 3.90 | M150: 0.39
A151: печенье | B151: 0.00 | C151: 10.00 | D151: 0.00 | E151: 0.00 | F151: 0.00 | G151: 0.00 | H151: 10.00 | I151: 0.00 | J151: 0.00 | K151: 0.00 | L151: 20.00 | M151: 2.00
A152: крекер | B152: 0.00 | C152: 0.00 | D152: 0.00 | E152: 0.00 | F152: 10.00 | G152: 0.00 | H152: 0.00 | I152: 0.00 | J152: 10.00 | K152: 0.00 | L152: 20.00 | M152: 2.00
A153: Соль | B153: 2.70 | C153: 2.00 | D153: 3.44 | E153: 1.50 | F153: 2.30 | G153: 3.20 | H153: 2.50 | I153: 5.30 | J153: 2.50 | K153: 3.18 | L153: 28.62 | M153: 2.86
A154: печенье КП | B154: 0.00 | C154: 0.00 | D154: 0.00 | E154: 0.00 | F154: 0.00 | G154: 0.00 | H154: 0.00 | I154: 0.00 | J154: 0.00 | K154: 0.00 | L154: 0.00 | M154: 0.00
A155: Сухари панировочные | B155: 0.00 | C155: 5.00 | D155: 0.00 | E155: 0.00 | F155: 0.00 | G155: 4.00 | H155: 1.70 | I155: 0.00 | J155: 0.00 | K155: 0.00 | L155: 10.70 | M155: 1.07
A156: вафли | B156: 0.00 | C156: 0.00 | D156: 0.00 | E156: 21.00 | F156: 0.00 | G156: 0.00 | H156: 0.00 | I156: 0.00 | J156: 0.00 | K156: 0.00 | L156: 21.00 | M156: 2.10
A157: Крупы, бобовые | B157: 44.50 | C157: 26.70 | D157: 28.00 | E157: 32.78 | F157: 50.28 | G157: 46.00 | H157: 43.98 | I157: 27.70 | J157: 35.70 | K157: 54.90 | L157: 390.54 | M157: 39.05
A158: Овощи разные | B158: 71.21 | C158: 70.07 | D158: 262.43 | E158: 105.62 | F158: 239.66 | G158: 107.09 | H158: 64.48 | I158: 188.92 | J158: 55.02 | K158: 96.17 | L158: 1260.66 | M158: 126.07
A159: Фрукты | B159: 0.00 | C159: 38.10 | D159: 0.00 | E159: 106.90 | F159: 38.10 | G159: 96.90 | H159: 48.10 | I159: 112.90 | J159: 0.00 | K159: 101.00 | L159: 542.00 | M159: 54.20
A160: Фрукты сухие | B160: 12.75 | C160: 125.00 | D160: 15.30 | E160: 10.00 | F160: 0.00 | G160: 12.75 | H160: 10.00 | I160: 28.75 | J160: 0.00 | K160: 15.30 | L160: 229.85 | M160: 22.99
A161: Молочные прод. | B161: 178.50 | C161: 291.94 | D161: 220.64 | E161: 245.36 | F161: 238.50 | G161: 224.24 | H161: 245.36 | I161: 239.50 | J161: 280.08 | K161: 282.56 | L161: 2446.68 | M161: 244.67
A162: Говядина | B162: 34.30 | C162: 11.40 | D162: 20.00 | E162: 34.00 | F162: 38.50 | G162: 47.80 | H162: 50.20 | I162: 33.80 | J162: 0.00 | K162: 0.00 | L162: 270.00 | M162: 27.00
A163: птица | B163: 65.69 | C163: 56.00 | D163: 21.65 | E163: 0.00 | F163: 107.62 | G163: 60.15 | H163: 22.61 | I163: 48.46 | J163: 22.61 | K163: 75.87 | L163: 480.66 | M163: 48.07
A164: Макаронные изделия | B164: 6.00 | C164: 0.00 | D164: 38.50 | E164: 0.00 | F164: 0.00 | G164: 38.50 | H164: 0.00 | I164: 14.00 | J164: 0.00 | K164: 0.00 | L164: 97.00 | M164: 9.70
A165: Хлеб пшеничный | B165: 49.00 | C165: 54.00 | D165: 45.00 | E165: 45.00 | F165: 45.00 | G165: 45.00 | H165: 59.40 | I165: 45.00 | J165: 45.00 | K165: 45.00 | L165: 477.40 | M165: 47.74
A166: Кондитерские изделия | B166: 0.00 | C166: 10.00 | D166: 0.00 | E166: 21.00 | F166: 10.00 | G166: 0.00 | H166: 10.00 | I166: 0.00 | J166: 10.00 | K166: 0.00 | L166: 61.00 | M166: 6.10

Sheet раскл1-3
C1: Меню-раскладка к примерному 10-дневному меню
C2: для организации питания детей в дошкольных образовательных учреждениях
C3: от 1-3 лет
A5: День 1 - ый
A6: Прием пищи | C6: Выход блюда | D6: Кол - во | E6: Кол - во | F6: Пищевые вещества (г) | I6: Энергетическая | J6: № рецептуры
A7: Наименование блюд | D7: (в гр ) | E7: (в гр ) | I7: ценность
D8: брутто | E8: нетто | F8: белки | G8: жиры | H8: угл-ды | I8: Ккал
B9: ЗАВТРАК
A10: Каша манная молочная с маслом | C10: 150/3 | F10: 7.50 | G10: 7.50 | H10: 18.40 | I10: 171.10 | J10: ТТК №4
B11: Крупа манная | D11: 15.00 | E11: 15.00
B12: Молоко | D12: 75.00 | E12: 75.00
B13: Вода | D13: 57.00 | E13: 57.00
B14: Сахар | D14: 2.00 | E14: 2.00
B15: Соль | D15: 0.80 | E15: 0.80
B16: Масло сливочное | D16: 3.00 | E16: 3.00
A17: Чай с сахаром | C17: 160/4 | F17: 0.05 | G17: 0.01 | H17: 4.42 | I17: 18.00 | J17: № 411 Дели2016
B18: Заварка | D18: 0.2 | E18: 0.2
B19: сахар | D19: 4 | E19: 4
B20: Вода | D20: 160 | E20: 160
A21: Бутерброд с маслом сливочным | C21: 25/5 | F21: 1.9 | G21: 4.4 | H21: 13 | I21: 99 | J21: №1 Дели2010
B22: Батон нарезной | D22: 25 | E22: 25
B23: Масло сливочное | D23: 5 | E23: 5
A24: Итого: | C24: 347 | F24: =SUM(F9:F23) -> 9.45 | G24: =SUM(G9:G23) -> 11.91 | H24: =SUM(H9:H23) -> 35.82 | I24: =SUM(I9:I23) -> 288.10
A25: Сок | C25: 125 | D25: 125 | E25: 125 | F25: 0.60 | G25: 0.30 | H25: 13.00 | I25: 57.00 | J25: №418Дели2016
A26: персиковый
A27: Итого: | C27: 125 | F27: =SUM(F25) -> 0.60 | G27: =SUM(G25) -> 0.30 | H27: =SUM(H25) -> 13.00 | I27: =SUM(I25) -> 57.00
C28: 472 | F28: =F24+F27 -> 10.05 | G28: =G24+G27 -> 12.21 | H28: =H24+H27 -> 48.82 | I28: =I24+I27 -> 345.10
B29: ОБЕД
A30: Салат из свежей капусты | C30: 30 | F30: 0.42 | G30: 1.50 | H30: 2.70 | I30: 26.00 | J30: №21, Дели 2016
B31: Капуста свежая | D31: 30.37 | E31: 24.30
B32: Морковь | D32: 3.12 | E32: 3.00
B33: Сахар | D33: 0.50 | E33: 0.50
B34: Масло растительное | D34: 1.50 | E34: 1.50
B35: соль | D35: 0.10 | E35: 0.10
A36: Суп вермишелевый с картофелем и курицей | C36: 150/10 | F36: 3.00 | G36: 4.32 | H36: 11.34 | I36: 99.00 | J36: №88 Дели 2016
B37: цыплята | D37: 22.61 | E37: 14.7
B38: Картофель | D38: 59.85 | E38: 45.0
B39: Морковь | D39: 8.0 | E39: 6.0
B40: Лук репчатый | D40: 7.1 | E40: 6.0
B41: Вермишель | D41: 6.0 | E41: 6.0
B42: Масло растительное | D42: 1.8 | E42: 1.8
B43: Соль | D43: 0.5 | E43: 0.5
B44: Вода | D44: 114.0 | E44: 114.0
A45: Тефтели из говядины | C45: 50 | F45: 3.87 | G45: 5 | H45: 3.13 | I45: 73 | J45: ТТК № 1152 от 09.10.2020
B46: фарш из говядины | D46: 34.3 | E46: 34.3
B47: Хлеб пшеничный 1с | D47: 4 | E47: 4
B48: Вода | D48: 4 | E48: 4
B49: Лук репчатый | D49: 10.2 | E49: 8.6
B50: Крупа манная | D50: 2 | E50: 2
B51: Соль | D51: 0.3 | E51: 0.3
B52: масса полуфабриката | E52: 53
B53: Масло растительное | D53: 1 | E53: 1
A54: Каша гречневая вязкая | C54: 110/2,5 | F54: 5.50 | G54: 5.00 | H54: 32.00 | I54: 195.00 | J54: №182,Дели 2016
B55: Крупа гречневая | D55: 27.50 | E55: 27.50
B56: Вода | D56: 91.30 | E56: 91.30
B57: Масло сливочное | D57: 2.50 | E57: 2.50
B58: Соль | D58: 0.40 | E58: 0.40
A59: Кисель | C59: 150 | H59: 8.34 | I59: 33.34 | J59: №284Партнер2014
B60: Кисель-концентрат | D60: 17.50 | E60: 17.50
B61: Сахар | D61: 4.00 | E61: 4.00
B62: вода | D62: 150.00 | E62: 150.00
A63: Хлеб сельский | C63: 30 | D63: 30 | E63: 30 | F63: 1.5 | G63: 0.3 | H63: 14.3 | I63: 66
A64: Итого: | C64: 532.50 | F64: =SUM(F30:F63) -> 14.29 | G64: =SUM(G30:G63) -> 16.12 | H64: =SUM(H30:H63) -> 71.81 | I64: =SUM(I30:I63) -> 492.34
B65: ПОЛДНИК
A66: Булочка Домашняя | C66: 40 | F66: 3.60 | G66: 4.00 | H66: 29.00 | I66: 167.00 | J66: №258 Партнер г. Уфа 2014
B67: Мука пшеничная | D67: 27.00 | E67: 27.00
B68: Сахар | D68: 5.60 | E68: 5.60
B69: вода | D69: 11.20 | E69: 11.20
B70: Масло растительное | D70: 5.60 | E70: 5.60
B71: Дрожжи сухие | D71: 0.16 | E71: 0.16
B72: Соль | D72: 0.20 | E72: 0.20
B73: Яйцо | D73: 0.80 | E73: 0.80
B74: Масса полуфабриката | E74: 48.40
B75: Масло растительное | D75: 0.10 | E75: 0.10
A76: Катык | C76: 100 | F76: 3.00 | G76: 2.50 | H76: 4.50 | I76: 54.30 | J76: №401Дели2010
B77: катык | D77: 103.5 | E77: 100
A78: Рагу с курицей | C78: 20/100 | F78: 4.50 | G78: 7.60 | H78: 13.00 | I78: 138.00 | J78: ТТК №63
B79: цыплята | D79: 43.08 | E79: 28.00
B80: Картофель | D80: 97.49 | E80: 73.30
B81: Морковь | D81: 12.40 | E81: 9.33
B82: Соль | D82: 0.40 | E82: 0.40
B83: вода | D83: 26.70 | E83: 26.70
B84: Масло растительное | D84: 3.00 | E84: 3.00
B85: Мука пшеничная | D85: 1.70 | E85: 1.70
B86: сахар | D86: 0.30 | E86: 0.30
A87: Напиток из урюка | C87: 150 | F87: 0.50 | G87: 0.03 | H87: 12.50 | I87: 52.10 | J87: ТТК №68
B88: урюк | D88: 12.75 | E88: 12.5
B89: Сахар | D89: 4 | E89: 4
B90: Вода | D90: 150 | E90: 150
A91: Хлеб пшеничный 1с | C91: 20 | D91: 20 | E91: 20 | F91: 1.6 | G91: 0.2 | H91: 9.8 | I91: 47
A92: Итого: | C92: 430.00 | F92: =SUM(F66:F91) -> 13.20 | G92: =SUM(G66:G91) -> 14.33 | H92: =SUM(H66:H91) -> 68.80 | I92: =SUM(I66:I91) -> 458.40
A93: ВСЕГО: | C93: =C24+C27+C64+C92 -> 1434.50 | F93: =F24+F27+F64+F92 -> 37.54 | G93: =G24+G27+G64+G92 -> 42.66 | H93: =H24+H27+H64+H92 -> 189.43 | I93: =I24+I27+I64+I92 -> 1295.84
A95: День 2- ой
A96: Прием пищи | C96: Выход блюда | D96: Кол - во | E96: Кол - во | F96: Пищевые вещества (г) | I96: Энергетическая | J96: № рецептуры
A97: Наименование блюд | D97: (в гр ) | E97: (в гр ) | I97: ценность
D98: брутто | E98: нетто | F98: белки | G98: жиры | H98: угл-ды | I98: Ккал
B99: ЗАВТРАК
A100: Каша "Дружба" молочная с маслом | C100: 150/3 | F100: 3.90 | G100: 4.35 | H100: 19.00 | I100: 131.00 | J100: ТТК №7
B101: Крупа рисовая | D101: 11 | E101: 11
B102: Крупа пшенная | D102: 8 | E102: 8
B103: Молоко | D103: 65 | E103: 65
B104: Вода | D104: 65 | E104: 65
B105: Сахар | D105: 0.75 | E105: 0.75
B106: Соль | D106: 0.5 | E106: 0.5
B107: Масло сливочное | D107: 3 | E107: 3
A108: Какао с молоком | C108: 160 | F108: 2.15 | G108: 2.29 | H108: 12.09 | I108: 65.16 | J108: №272 Парнер г. Уфа 2014
B109: Какао-порошок | D109: 1.3 | E109: 1.3
B110: Сахар | D110: 7 | E110: 7
B111: Молоко | D111: 80 | E111: 80
B112: вода | D112: 90 | E112: 90
A113: Бутерброд с сыром, маслом | C113: 25/5/3 | F113: 3.50 | G113: 5.95 | H113: 12.90 | I113: 119.60 | J113: №3Дели2010
B114: Батон нарезной | D114: 25 | E114: 25
B115: Сыр | D115: 5.1 | E115: 5
B116: Масло сливочное | D116: 3 | E116: 3
A117: Итого: | C117: 346 | F117: =SUM(F99:F116) -> 9.55 | G117: 12.33 | H117: =SUM(H99:H116) -> 43.99 | I117: =SUM(I99:I116) -> 315.76
A118: Фруктовое пюре | C118: 125 | D118: 125 | E118: 125 | F118: 13.00 | I118: 55.00
A120: Итого: | C120: 85 | F120: =SUM(F118) -> 13.00 | G120: =SUM(G118) -> 0.00 | H120: =SUM(H118) -> 0.00 | I120: =SUM(I118) -> 55.00
C121: 471 | F121: =F117+F120 -> 22.55 | G121: =G117+G120 -> 12.33 | H121: =H117+H120 -> 43.99 | I121: =I117+I120 -> 370.76
B122: ОБЕД
A123: Салат из свеклы | C123: 30 | F123: 0.36 | G123: 1.50 | H123: 2.52 | I123: 25.00 | J123: №34, Дели2016
B124: Свекла | D124: 38.76 | E124: 28.50
B125: Масло растительное | D125: 1.50 | E125: 1.50
A126: Суп из овощей с мясными фрикадельками, со сметаной | C126: 150/10/5 | F126: 4.70 | G126: 3.90 | H126: 23.00 | I126: 146.00 | J126: №64 "Партнер"2014
B127: Фарш из говядины | D127: 11.4 | E127: 11.4
B128: Лук репчатый | D128: 1.19 | E128: 1
B129: Яйцо | D129: 1 | E129: 1
B130: Вода для фарша | D130: 1.14 | E130: 1.14
B131: Масса полуфабриката | E131: 13.4
B132: Капуста свежая | D132: 15.00 | E132: 12.00
B133: Картофель | D133: 39.90 | E133: 30.00
B134: Морковь | D134: 7.98 | E134: 6.00
B135: Лук репчатый | D135: 7.14 | E135: 6.00
B136: Масло растительное | D136: 2.00 | E136: 2.00
B137: Соль | D137: 0.50 | E137: 0.50
B138: Бульон или вода | D138: 114.00 | E138: 114.00
B139: Сметана | D139: 5.00 | E139: 5.00
A140: Котлеты рубленые из птицы | C140: 50 | F140: 4.40 | G140: 8.30 | H140: 2.00 | I140: 100.00 | J140: № 205,справ.М2003
B141: Цыплята | D141: 56 | E141: 36.4
B142: Хлеб пшеничный 1с | D142: 9 | E142: 9
B143: Вода | D143: 13 | E143: 13.0
B144: Сухари панировочные | D144: 5 | E144: 5.0
B145: масса полуфабриката | E145: 62.5
B146: Масло растительное | D146: 0.6 | E146: 0.6
A147: Пюре Картофельное | C147: 110 | F147: 3.13 | G147: 3.76 | H147: 13.03 | I147: 131.15 | J147: №137 Партнер 2014
B148: Картофель | D148: 125.60 | E148: 94.43
B149: Молоко | D149: 17.38 | E149: 16.50
B150: Масло сливочное | D150: 3.00 | E150: 3.00
B151: Соль | D151: 0.90 | E151: 0.90
A152: Компот из свежих яблок | C152: 150 | F152: 0.10 | G152: 0.10 | H152: 10.20 | I152: 42.10 | J152: № 390 Дели 2016
B153: Яблоки | D153: 34 | E153: 30
B154: Сахар | D154: 4 | E154: 4
B155: Вода | D155: 130 | E155: 130
A156: Хлеб сельский | C156: 30 | D156: 30 | E156: 30 | F156: 1.5 | G156: 0.3 | H156: 14.3 | I156: 66
A157: Итого: | C157: 535.00 | F157: =SUM(F123:F156) -> 14.19 | G157: =SUM(G123:G156) -> 17.86 | H157: =SUM(H123:H156) -> 65.05 | I157: =SUM(I123:I156) -> 510.25
B158: ПОЛДНИК
A159: Кондитерские изделия | C159: 10 | F159: 2.20 | G159: 2.80 | H159: 20.50 | I159: 114.00
A160: печенье | D160: 10.00 | E160: 10.00
A161: Молоко кипяченое | C161: 100 | F161: 2.30 | G161: 2.50 | H161: 3.60 | I161: 46.00 | J161: №419 Дели2016
B162: молоко | D162: 105.36 | E162: 100.00
A163: Суфле из творога с молоком сгущенным | C163: 100/10 | F163: 5.82 | G163: 8.10 | H163: 15.53 | I163: 158.00 | J163: ТТК №567
B164: Творог | D164: 72.28 | E164: 71.33
B165: Крупа манная | D165: 7.70 | E165: 7.70
B166: Яйцо | D166: 4.70 | E166: 4.70
B167: Сахар | D167: 7.60 | E167: 7.60
B168: Молоко | D168: 14.20 | E168: 14.20
B169: соль | D169: 0.10 | E169: 0.10
B170: Сметана | D170: 9.50 | E170: 9.50
B171: Масло растительное | D171: 0.40 | E171: 0.40
B172: молоко сгущенное | D172: 10.00 | E172: 10.00
A173: Чай с сахаром и лимоном | C173: 150/4/4 | F173: 0.09 | G173: 0.01 | H173: 8.50 | I173: 34.50 | J173: №393Дели2010
B174: Заварка | D174: 0.3 | E174: 0.3
B175: Сахар | D175: 4 | E175: 4
B176: лимон | D176: 4.1 | E176: 4
B177: Вода | D177: 150.0 | E177: 150.0
A178: Хлеб пшеничный 1с | C178: 20 | D178: 20 | E178: 20 | F178: 1.6 | G178: 0.2 | H178: 9.8 | I178: 47
A179: Итого: | C179: 398 | F179: =SUM(F159:F178) -> 12.01 | G179: =SUM(G159:G178) -> 13.61 | H179: =SUM(H159:H178) -> 57.93 | I179: =SUM(I159:I178) -> 399.50
A180: ВСЕГО: | C180: =C117+C120+C157+C179 -> 1364.00 | F180: =F117+F120+F157+F179 -> 48.75 | G180: =G117+G120+G157+G179 -> 43.80 | H180: =H117+H120+H157+H179 -> 166.97 | I180: =I117+I120+I157+I179 -> 1280.51
A182: День 3 - ий
A183: Прием пищи | C183: Выход блюда | D183: Кол - во | E183: Кол - во | F183: Пищевые вещества (г) | I183: Энергетическая | J183: № рецептуры
A184: Наименование блюд | D184: (в гр ) | E184: (в гр ) | I184: ценность
D185: брутто | E185: нетто | F185: белки | G185: жиры | H185: угл-ды | I185: Ккал
B186: ЗАВТРАК
A187: Каша геркулесовая молочная с маслом | C187: 150/3 | F187: 5.00 | G187: 5.63 | H187: 16.50 | I187: 136.50 | J187: ТТК №5
B188: Крупа геркулесовая | D188: 19 | E188: 19
B189: Молоко | D189: 75.00 | E189: 75.00
B190: Сахар | D190: 2.00 | E190: 2.00
B191: Вода | D191: 57.00 | E191: 57.00
B192: Соль | D192: 0.8 | E192: 0.8
B193: Масло сливочное | D193: 3 | E193: 3
A194: Чай с молоком,сахаром | C194: 160/4 | F194: 2.30 | G194: 2.00 | H194: 11.90 | I194: 74.80 | J194: №394Дели2010
B195: Заварка | D195: 0.2 | E195: 0.2
B196: Сахар | D196: 4 | E196: 4
B197: Молоко | D197: 42 | E197: 42
B198: Вода | D198: 115 | E198: 115
A199: Бутерброд с маслом сливочным | C199: 25/5 | F199: 1.9 | G199: 4.4 | H199: 13 | I199: 99 | J199: №1 Дели2010
B200: Батон нарезной | D200: 25 | E200: 25
B201: Масло сливочное | D201: 5 | E201: 5
A202: Итого: | C202: 347 | F202: =SUM(F186:F201) -> 9.20 | G202: =SUM(G186:G201) -> 12.03 | H202: =SUM(H186:H201) -> 41.40 | I202: =SUM(I186:I201) -> 310.30
A203: Сок | C203: 125 | D203: 125 | E203: 125 | F203: 0.80 | G203: 0.20 | H203: 7.00 | I203: 33.00 | J203: №418Дели2016
A204: персиковый
... 683 more rows

Sheet свод 3-7
B1: Расход продуктов ДОУ
D2: от 3 до 7 лет | K2: НЕТТО
A3: Наименов. прод. | B3: 1 | C3: 2 | D3: 3 | E3: 4 | F3: 5 | G3: 6 | H3: 7 | I3: 8 | J3: 9 | K3: 10 | L3: Кол-во израсходованных продуктов за 10 дней
A5: Сахар | B5: 26.38 | C5: 30.40 | D5: 23.70 | E5: 28.50 | F5: 22.90 | G5: 24.80 | H5: 28.00 | I5: 19.21 | J5: 31.20 | K5: 20.83 | L5: 255.92
A6: Заварка | B6: 0.30 | C6: 0.35 | D6: 0.30 | E6: 0.30 | F6: 0.35 | G6: 0.30 | H6: 0.35 | I6: 0.30 | J6: 0.30 | K6: 0.35 | L6: 3.20
A7: Яйцо | B7: 1.00 | C7: 8.64 | D7: 48.00 | E7: 7.80 | F7: 0.00 | G7: 8.50 | H7: 7.80 | I7: 2.50 | J7: 7.14 | K7: 106.40 | L7: 197.78
A8: Дрожжи сухие | B8: 0.20 | C8: 0.00 | D8: 0.30 | E8: 0.00 | F8: 0.00 | G8: 0.38 | H8: 0.00 | I8: 0.20 | J8: 0.00 | K8: 0.20 | L8: 1.28
A9: Батон нарезной | B9: 25.00 | C9: 25.00 | D9: 25.00 | E9: 25.00 | F9: 25.00 | G9: 25.00 | H9: 25.00 | I9: 25.00 | J9: 25.00 | K9: 25.00 | L9: 250.00
A10: Хлеб пшеничный 1с | B10: 26.00 | C10: 33.00 | D10: 20.00 | E10: 20.00 | F10: 20.00 | G10: 20.00 | H10: 32.00 | I10: 20.00 | J10: 20.00 | K10: 20.00 | L10: 231.00
A11: Хлеб сельский | B11: 37.50 | C11: 37.50 | D11: 37.50 | E11: 37.50 | F11: 37.50 | G11: 37.50 | H11: 37.50 | I11: 37.50 | J11: 37.50 | K11: 37.50 | L11: 375.00
A12: Мука пшеничная | B12: 36.40 | C12: 0.00 | D12: 35.31 | E12: 0.00 | F12: 1.21 | G12: 30.00 | H12: 1.30 | I12: 26.10 | J12: 1.35 | K12: 24.70 | L12: 156.37
A13: Кисель-концентрат | B13: 21.60 | C13: 0.00 | D13: 0.00 | E13: 21.60 | F13: 0.00 | G13: 21.60 | H13: 0.00 | I13: 0.00 | J13: 21.60 | K13: 0.00 | L13: 86.40
A14: Макаронные изделия | B14: 0.00 | C14: 0.00 | D14: 45.50 | E14: 0.00 | F14: 0.00 | G14: 45.50 | H14: 0.00 | I14: 0.00 | J14: 0.00 | K14: 0.00 | L14: 91.00
A15: Вермишель | B15: 8.00 | C15: 0.00 | D15: 0.00 | E15: 0.00 | F15: 0.00 | G15: 0.00 | H15: 0.00 | I15: 15.55 | J15: 0.00 | K15: 0.00 | L15: 23.55
A16: Крупа рисовая | B16: 0.00 | C16: 15.00 | D16: 12.00 | E16: 18.00 | F16: 38.50 | G16: 0.00 | H16: 18.00 | I16: 45.60 | J16: 0.00 | K16: 37.70 | L16: 184.80
A17: Крупа кукурузная | B17: 0.00 | C17: 0.00 | D17: 0.00 | E17: 0.00 | F17: 0.00 | G17: 0.00 | H17: 0.00 | I17: 0.00 | J17: 0.00 | K17: 0.00 | L17: 0.00
A18: Крупа манная | B18: 23.00 | C18: 11.40 | D18: 0.00 | E18: 0.00 | F18: 0.00 | G18: 0.00 | H18: 0.00 | I18: 0.00 | J18: 11.40 | K18: 0.00 | L18: 45.80
A19: Горох | B19: 0.00 | C19: 0.00 | D19: 0.00 | E19: 0.00 | F19: 0.00 | G19: 0.00 | H19: 20.00 | I19: 0.00 | J19: 0.00 | K19: 0.00 | L19: 20.00
A20: Крупа пшенная | B20: 0.00 | C20: 11.00 | D20: 0.00 | E20: 30.00 | F20: 0.00 | G20: 0.00 | H20: 0.00 | I20: 0.00 | J20: 0.00 | K20: 30.00 | L20: 71.00
A21: Крупа ячневая | B21: 0.00 | C21: 0.00 | D21: 0.00 | E21: 0.00 | F21: 0.00 | G21: 0.00 | H21: 25.00 | I21: 0.00 | J21: 0.00 | K21: 0.00 | L21: 25.00
A22: Полба | B22: 0.00 | C22: 0.00 | D22: 0.00 | E22: 0.00 | F22: 25.00 | G22: 0.00 | H22: 0.00 | I22: 0.00 | J22: 25.00 | K22: 0.00 | L22: 50.00
A23: Крупа перловая | B23: 0.00 | C23: 0.00 | D23: 0.00 | E23: 0.00 | F23: 0.00 | G23: 8.00 | H23: 0.00 | I23: 0.00 | J23: 0.00 | K23: 0.00 | L23: 8.00
A24: Крупа геркулесовая | B24: 0.00 | C24: 0.00 | D24: 25.00 | E24: 0.00 | F24: 0.00 | G24: 25.00 | H24: 0.00 | I24: 0.00 | J24: 0.00 | K24: 0.00 | L24: 50.00
A25: Крупа пшеничная | B25: 0.00 | C25: 0.00 | D25: 0.00 | E25: 0.00 | F25: 0.00 | G25: 0.00 | H25: 0.00 | I25: 0.00 | J25: 0.00 | K25: 0.00 | L25: 0.00
A26: Крупа гречневая | B26: 32.50 | C26: 0.00 | D26: 0.00 | E26: 0.00 | F26: 0.00 | G26: 25.00 | H26: 0.00 | I26: 0.00 | J26: 12.00 | K26: 0.00 | L26: 69.50
A27: Картофель | B27: 148.00 | C27: 151.60 | D27: 60.00 | E27: 131.20 | F27: 34.50 | G27: 60.00 | H27: 183.00 | I27: 56.00 | J27: 171.60 | K27: 40.00 | L27: 1035.90
A28: Морковь | B28: 24.80 | C28: 8.00 | D28: 29.00 | E28: 58.00 | F28: 27.26 | G28: 42.28 | H28: 8.00 | I28: 45.40 | J28: 59.80 | K28: 25.00 | L28: 327.54
A29: Лук репчатый | B29: 20.19 | C29: 9.50 | D29: 28.12 | E29: 21.59 | F29: 24.29 | G29: 21.43 | H29: 18.30 | I29: 31.30 | J29: 8.60 | K29: 22.00 | L29: 205.32
A30: Свекла | B30: 0.00 | C30: 47.50 | D30: 0.00 | E30: 0.00 | F30: 51.00 | G30: 0.00 | H30: 47.50 | I30: 32.00 | J30: 0.00 | K30: 0.00 | L30: 178.00
A31: Капуста свежая | B31: 40.50 | C31: 16.00 | D31: 162.00 | E31: 40.00 | F31: 99.32 | G31: 40.50 | H31: 0.00 | I31: 45.30 | J31: 0.00 | K31: 16.00 | L31: 459.62
A32: Икра кабачковая | B32: 0.00 | C32: 0.00 | D32: 0.00 | E32: 0.00 | F32: 0.00 | G32: 0.00 | H32: 0.00 | I32: 0.00 | J32: 0.00 | K32: 0.00 | L32: 0.00
A33: Огурцы соленые | B33: 0.00 | C33: 0.00 | D33: 0.00 | E33: 0.00 | F33: 0.00 | G33: 12.00 | H33: 0.00 | I33: 0.00 | J33: 0.00 | K33: 0.00 | L33: 12.00
A34: Помидоры свежие | B34: 0.00 | C34: 0.00 | D34: 50.00 | E34: 0.00 | F34: 50.00 | G34: 0.00 | H34: 0.00 | I34: 50.00 | J34: 0.00 | K34: 50.00 | L34: 200.00
A35: Огурцы свежие | B35: 0.00 | C35: 0.00 | D35: 0.00 | E35: 0.00 | F35: 0.00 | G35: 0.00 | H35: 0.00 | I35: 0.00 | J35: 0.00 | K35: 0.00 | L35: 0.00
A36: перец | B36: 0.00 | C36: 0.00 | D36: 0.00 | E36: 0.00 | F36: 0.00 | G36: 0.00 | H36: 0.00 | I36: 0.00 | J36: 0.00 | K36: 0.00 | L36: 0.00
A37: Томат-паста | B37: 1.00 | C37: 0.00 | D37: 5.60 | E37: 0.00 | F37: 1.00 | G37: 0.00 | H37: 0.00 | I37: 1.00 | J37: 1.00 | K37: 3.00 | L37: 12.60
A38: Масло сливочное | B38: 11.00 | C38: 9.00 | D38: 22.10 | E38: 9.90 | F38: 12.33 | G38: 13.10 | H38: 15.90 | I38: 9.01 | J38: 11.00 | K38: 16.20 | L38: 129.54
A39: Масло растительное | B39: 18.70 | C39: 8.00 | D39: 3.50 | E39: 8.33 | F39: 10.35 | G39: 14.30 | H39: 5.50 | I39: 11.20 | J39: 5.10 | K39: 11.38 | L39: 96.36
A40: Фрукты свежие | B40: 0.00 | C40: 0.00 | D40: 0.00 | E40: 100.00 | F40: 0.00 | G40: 100.00 | H40: 0.00 | I40: 100.00 | J40: 0.00 | K40: 100.00 | L40: 400.00
A41: Яблоки | B41: 0.00 | C41: 36.00 | D41: 0.00 | E41: 0.00 | F41: 36.00 | G41: 0.00 | H41: 36.00 | I41: 0.00 | J41: 0.00 | K41: 0.00 | L41: 108.00
A42: крыжовник зам. | B42: 0.00 | C42: 0.00 | D42: 0.00 | E42: 0.00 | F42: 0.00 | G42: 0.00 | H42: 0.00 | I42: 0.00 | J42: 0.00 | K42: 0.00 | L42: 0.00
A43: Лимон | B43: 0.00 | C43: 5.00 | D43: 0.00 | E43: 0.00 | F43: 5.00 | G43: 0.00 | H43: 5.00 | I43: 0.00 | J43: 0.00 | K43: 5.00 | L43: 20.00
A44: Апельсин | B44: 0.00 | C44: 0.00 | D44: 0.00 | E44: 0.00 | F44: 0.00 | G44: 0.00 | H44: 0.00 | I44: 0.00 | J44: 0.00 | K44: 0.00 | L44: 0.00
A45: Сок | B45: 125.00 | C45: 0.00 | D45: 125.00 | E45: 0.00 | F45: 125.00 | G45: 0.00 | H45: 125.00 | I45: 0.00 | J45: 125.00 | K45: 0.00 | L45: 625.00
A46: Фруктовое пюре | B46: 0.00 | C46: 125.00 | D46: 0.00 | E46: 0.00 | F46: 0.00 | G46: 0.00 | H46: 0.00 | I46: 0.00 | J46: 0.00 | K46: 0.00 | L46: 125.00
A47: Сухофрукты | B47: 0.00 | C47: 0.00 | D47: 18.00 | E47: 0.00 | F47: 0.00 | G47: 0.00 | H47: 0.00 | I47: 0.00 | J47: 0.00 | K47: 18.00 | L47: 36.00
A48: Урюк | B48: 15.00 | C48: 0.00 | D48: 0.00 | E48: 0.00 | F48: 0.00 | G48: 15.00 | H48: 0.00 | I48: 15.00 | J48: 0.00 | K48: 0.00 | L48: 45.00
A49: повидло фруктовое | B49: 0.00 | C49: 0.00 | D49: 0.00 | E49: 20.00 | F49: 0.00 | G49: 0.00 | H49: 20.00 | I49: 20.00 | J49: 0.00 | K49: 0.00 | L49: 60.00
A50: Шиповник порошок | B50: 0.00 | C50: 0.00 | D50: 2.70 | E50: 0.00 | F50: 0.00 | G50: 0.00 | H50: 0.00 | I50: 2.70 | J50: 0.00 | K50: 0.00 | L50: 5.40
A51: Молоко | B51: 100.00 | C51: 326.90 | D51: 148.00 | E51: 288.00 | F51: 178.00 | G51: 152.50 | H51: 288.00 | I51: 151.11 | J51: 218.90 | K51: 328.00 | L51: 2179.41
A52: Кефир | B52: 0.00 | C52: 0.00 | D52: 0.00 | E52: 0.00 | F52: 110.00 | G52: 0.00 | H52: 0.00 | I52: 0.00 | J52: 110.00 | K52: 0.00 | L52: 220.00
A53: Ряженка | B53: 0.00 | C53: 0.00 | D53: 110.00 | E53: 0.00 | F53: 0.00 | G53: 110.00 | H53: 0.00 | I53: 0.00 | J53: 0.00 | K53: 0.00 | L53: 220.00
A54: Катык | B54: 110.00 | C54: 0.00 | D54: 0.00 | E54: 0.00 | F54: 0.00 | G54: 0.00 | H54: 0.00 | I54: 110.00 | J54: 0.00 | K54: 0.00 | L54: 220.00
A55: Молоко сгущенное | B55: 0.00 | C55: 20.00 | D55: 0.00 | E55: 0.00 | F55: 0.00 | G55: 0.00 | H55: 0.00 | I55: 0.00 | J55: 20.00 | K55: 0.00 | L55: 40.00
A56: Сметана | B56: 0.00 | C56: 20.28 | D56: 6.00 | E56: 8.90 | F56: 6.00 | G56: 5.00 | H56: 8.90 | I56: 5.00 | J56: 14.28 | K56: 16.29 | L56: 90.65
A57: Творог | B57: 0.00 | C57: 107.14 | D57: 0.00 | E57: 97.50 | F57: 0.00 | G57: 0.00 | H57: 97.50 | I57: 0.00 | J57: 107.14 | K57: 0.00 | L57: 409.28
A58: Говядина | B58: 0.00 | C58: 0.00 | D58: 0.00 | E58: 41.78 | F58: 0.00 | G58: 0.00 | H58: 0.00 | I58: 52.00 | J58: 0.00 | K58: 0.00 | L58: 93.78
A59: Фарш из говядины | B59: 48.00 | C59: 17.10 | D59: 28.00 | E59: 0.00 | F59: 45.93 | G59: 60.10 | H59: 58.00 | I59: 0.00 | J59: 0.00 | K59: 0.00 | L59: 257.13
A60: Цыплята | B60: 49.66 | C60: 52.00 | D60: 14.70 | E60: 0.00 | F60: 82.70 | G60: 55.00 | H60: 14.67 | I60: 39.42 | J60: 14.67 | K60: 0.00 | L60: 322.82
A61: индейка филе | B61: 0.00 | C61: 0.00 | D61: 0.00 | E61: 0.00 | F61: 0.00 | G61: 0.00 | H61: 0.00 | I61: 0.00 | J61: 0.00 | K61: 0.00 | L61: 0.00
A62: куриная грудка | B62: 0.00 | C62: 0.00 | D62: 0.00 | E62: 0.00 | F62: 0.00 | G62: 0.00 | H62: 0.00 | I62: 0.00 | J62: 0.00 | K62: 64.00 | L62: 64.00
A63: Сыр | B63: 0.00 | C63: 7.00 | D63: 0.00 | E63: 7.00 | F63: 0.00 | G63: 7.00 | H63: 0.00 | I63: 7.00 | J63: 0.00 | K63: 24.70 | L63: 52.70
A64: Ежики рыбные с рисом пф 74гр | B64: 0.00 | C64: 0.00 | D64: 0.00 | E64: 0.00 | F64: 0.00 | G64: 0.00 | H64: 0.00 | I64: 0.00 | J64: 1.00 | K64: 0.00 | L64: 1.00
A65: Кофейный напиток | B65: 0.00 | C65: 0.00 | D65: 0.00 | E65: 1.50 | F65: 0.00 | G65: 0.00 | H65: 1.50 | I65: 0.00 | J65: 0.00 | K65: 1.50 | L65: 4.50
A66: Какао-порошок | B66: 0.00 | C66: 1.50 | D66: 0.00 | E66: 0.00 | F66: 1.50 | G66: 0.00 | H66: 0.00 | I66: 0.00 | J66: 1.50 | K66: 0.00 | L66: 4.50
A67: печенье КП | B67: 0.00 | C67: 0.00 | D67: 0.00 | E67: 0.00 | F67: 0.00 | G67: 0.00 | H67: 0.00 | I67: 0.00 | J67: 0.00 | K67: 0.00 | L67: 0.00
A68: крекер | B68: 0.00 | C68: 0.00 | D68: 0.00 | E68: 0.00 | F68: 10.00 | G68: 0.00 | H68: 0.00 | I68: 0.00 | J68: 10.00 | K68: 0.00 | L68: 20.00
A69: Соль | B69: 4.60 | C69: 4.10 | D69: 4.37 | E69: 3.53 | F69: 3.20 | G69: 4.60 | H69: 4.00 | I69: 5.91 | J69: 3.60 | K69: 4.50 | L69: 42.41
A70: печенье | B70: 0.00 | C70: 10.00 | D70: 0.00 | E70: 0.00 | F70: 0.00 | G70: 0.00 | H70: 10.00 | I70: 0.00 | J70: 0.00 | K70: 0.00 | L70: 20.00
A71: Сухари панировочные | B71: 0.00 | C71: 7.00 | D71: 0.00 | E71: 0.00 | F71: 0.00 | G71: 6.00 | H71: 2.00 | I71: 0.00 | J71: 0.00 | K71: 0.00 | L71: 15.00
A72: вафли | B72: 0.00 | C72: 0.00 | D72: 0.00 | E72: 21.00 | F72: 0.00 | G72: 0.00 | H72: 0.00 | I72: 0.00 | J72: 0.00 | K72: 0.00 | L72: 21.00
A73: Крупы, бобовые | B73: 55.50 | C73: 37.40 | D73: 37.00 | E73: 48.00 | F73: 63.50 | G73: 58.00 | H73: 63.00 | I73: 45.60 | J73: 48.40 | K73: 67.70 | L73: 524.10
A74: Овощи разные | B74: 86.49 | C74: 81.00 | D74: 274.72 | E74: 119.59 | F74: 252.87 | G74: 116.21 | H74: 73.80 | I74: 205.00 | J74: 69.40 | K74: 116.00 | L74: 1395.08
A75: Фрукты | B75: 0.00 | C75: 166.00 | D75: 0.00 | E75: 120.00 | F75: 41.00 | G75: 100.00 | H75: 61.00 | I75: 120.00 | J75: 0.00 | K75: 105.00 | L75: 713.00
A76: Фрукты сухие | B76: 15.00 | C76: 125.00 | D76: 20.70 | E76: 0.00 | F76: 0.00 | G76: 15.00 | H76: 0.00 | I76: 17.70 | J76: 0.00 | K76: 18.00 | L76: 211.40
A77: Молочные прод. | B77: 210.00 | C77: 346.90 | D77: 258.00 | E77: 288.00 | F77: 288.00 | G77: 262.50 | H77: 288.00 | I77: 261.11 | J77: 348.90 | K77: 328.00 | L77: 2879.41
A78: Говядина | B78: 48.00 | C78: 17.10 | D78: 28.00 | E78: 41.78 | F78: 45.93 | G78: 60.10 | H78: 58.00 | I78: 52.00 | J78: 0.00 | K78: 0.00 | L78: 350.91
A79: Птица | B79: 49.66 | C79: 52.00 | D79: 14.70 | E79: 0.00 | F79: 82.70 | G79: 55.00 | H79: 14.67 | I79: 39.42 | J79: 14.67 | K79: 64.00 | L79: 386.82
A80: Макаронные изделия | B80: 8.00 | C80: 0.00 | D80: 45.50 | E80: 0.00 | F80: 0.00 | G80: 45.50 | H80: 0.00 | I80: 15.55 | J80: 0.00 | K80: 0.00 | L80: 114.55
A81: Хлеб пшеничный | B81: 51.00 | C81: 65.00 | D81: 45.00 | E81: 45.00 | F81: 45.00 | G81: 51.00 | H81: 59.00 | I81: 45.00 | J81: 45.00 | K81: 45.00 | L81: 496.00
A82: Кондитерские изделия | B82: 0.00 | C82: 10.00 | D82: 0.00 | E82: 21.00 | F82: 10.00 | G82: 0.00 | H82: 10.00 | I82: 0.00 | J82: 10.00 | K82: 0.00 | L82: 61.00
A83: Примечание: расход хлеба пшеничного с учетом расхода сухарей панировочных
B84: Расход продуктов ДОУ
D85: от 3 до 7 лет | K85: брутто
A87: Наименов. прод. | B87: 1 | C87: 2 | D87: 3 | E87: 4 | F87: 5 | G87: 6 | H87: 7 | I87: 8 | J87: 9 | K87: 10 | L87: Кол-во
A89: Сахар | B89: 26.38 | C89: 30.40 | D89: 23.70 | E89: 28.50 | F89: 22.90 | G89: 24.80 | H89: 28.00 | I89: 19.21 | J89: 31.20 | K89: 20.83 | L89: 255.92
A90: Заварка | B90: 0.30 | C90: 0.35 | D90: 0.30 | E90: 0.30 | F90: 0.35 | G90: 0.30 | H90: 0.35 | I90: 0.30 | J90: 0.30 | K90: 0.35 | L90: 3.20
A91: Яйцо | B91: 1.00 | C91: 8.64 | D91: 48.00 | E91: 7.80 | F91: 0.00 | G91: 8.50 | H91: 7.80 | I91: 2.50 | J91: 7.14 | K91: 106.40 | L91: 197.78
A92: Дрожжи сухие | B92: 0.20 | C92: 0.00 | D92: 0.30 | E92: 0.00 | F92: 0.00 | G92: 0.38 | H92: 0.00 | I92: 0.20 | J92: 0.00 | K92: 0.20 | L92: 1.28
A93: Батон нарезной | B93: 25.00 | C93: 25.00 | D93: 25.00 | E93: 25.00 | F93: 25.00 | G93: 25.00 | H93: 25.00 | I93: 25.00 | J93: 25.00 | K93: 25.00 | L93: 250.00
A94: Хлеб пшеничный 1с | B94: 26.00 | C94: 33.00 | D94: 20.00 | E94: 20.00 | F94: 20.00 | G94: 20.00 | H94: 34.40 | I94: 20.00 | J94: 20.00 | K94: 20.00 | L94: 233.40
A95: Хлеб сельский | B95: 37.50 | C95: 37.50 | D95: 37.50 | E95: 37.50 | F95: 37.50 | G95: 37.50 | H95: 37.50 | I95: 37.50 | J95: 37.50 | K95: 37.50 | L95: 375.00
A96: Мука пшеничная | B96: 36.40 | C96: 0.00 | D96: 35.31 | E96: 0.00 | F96: 1.21 | G96: 30.00 | H96: 1.30 | I96: 26.10 | J96: 1.35 | K96: 24.70 | L96: 156.37
A97: Кисель-концентрат | B97: 21.60 | C97: 0.00 | D97: 0.00 | E97: 21.60 | F97: 0.00 | G97: 21.60 | H97: 0.00 | I97: 0.00 | J97: 21.60 | K97: 0.00 | L97: 86.40
A98: Макаронные изделия | B98: 0.00 | C98: 0.00 | D98: 45.50 | E98: 0.00 | F98: 0.00 | G98: 45.50 | H98: 0.00 | I98: 0.00 | J98: 0.00 | K98: 0.00 | L98: 91.00
A99: Вермишель | B99: 8.00 | C99: 0.00 | D99: 0.00 | E99: 0.00 | F99: 0.00 | G99: 0.00 | H99: 0.00 | I99: 15.55 | J99: 0.00 | K99: 0.00 | L99: 23.55
A100: Крупа рисовая | B100: 0.00 | C100: 15.00 | D100: 12.00 | E100: 18.00 | F100: 38.50 | G100: 0.00 | H100: 18.00 | I100: 45.60 | J100: 0.00 | K100: 37.70 | L100: 184.80
A101: Крупа кукурузная | B101: 0.00 | C101: 0.00 | D101: 0.00 | E101: 0.00 | F101: 0.00 | G101: 0.00 | H101: 0.00 | I101: 0.00 | J101: 0.00 | K101: 0.00 | L101: 0.00
A102: Крупа манная | B102: 23.00 | C102: 11.40 | D102: 0.00 | E102: 0.00 | F102: 0.00 | G102: 0.00 | H102: 0.00 | I102: 0.00 | J102: 11.40 | K102: 0.00 | L102: 45.80
A103: Горох | B103: 0.00 | C103: 0.00 | D103: 0.00 | E103: 0.00 | F103: 0.00 | G103: 0.00 | H103: 20.20 | I103: 0.00 | J103: 0.00 | K103: 0.00 | L103: 20.20
A104: Крупа пшенная | B104: 0.00 | C104: 11.00 | D104: 0.00 | E104: 30.00 | F104: 0.00 | G104: 0.00 | H104: 0.00 | I104: 0.00 | J104: 0.00 | K104: 30.00 | L104: 71.00
A105: Крупа ячневая | B105: 0.00 | C105: 0.00 | D105: 0.00 | E105: 0.00 | F105: 0.00 | G105: 0.00 | H105: 25.00 | I105: 0.00 | J105: 0.00 | K105: 0.00 | L105: 25.00
A106: Полба | B106: 0.00 | C106: 0.00 | D106: 0.00 | E106: 0.00 | F106: 25.00 | G106: 0.00 | H106: 0.00 | I106: 0.00 | J106: 25.00 | K106: 0.00 | L106: 50.00
A107: Крупа перловая | B107: 0.00 | C107: 0.00 | D107: 0.00 | E107: 0.00 | F107: 0.00 | G107: 8.00 | H107: 0.00 | I107: 0.00 | J107: 0.00 | K107: 0.00 | L107: 8.00
A108: Крупа геркулесовая | B108: 0.00 | C108: 0.00 | D108: 25.00 | E108: 0.00 | F108: 0.00 | G108: 25.00 | H108: 0.00 | I108: 0.00 | J108: 0.00 | K108: 0.00 | L108: 50.00
A109: Крупа пшеничная | B109: 0.00 | C109: 0.00 | D109: 0.00 | E109: 0.00 | F109: 0.00 | G109: 0.00 | H109: 0.00 | I109: 0.00 | J109: 0.00 | K109: 0.00 | L109: 0.00
A110: Крупа гречневая | B110: 32.50 | C110: 0.00 | D110: 0.00 | E110: 0.00 | F110: 0.00 | G110: 25.00 | H110: 0.00 | I110: 0.00 | J110: 12.00 | K110: 0.00 | L110: 69.50
A111: Картофель | B111: 196.84 | C111: 201.63 | D111: 79.80 | E111: 174.50 | F111: 45.88 | G111: 100.20 | H111: 243.39 | I111: 74.48 | J111: 228.23 | K111: 53.20 | L111: 1398.15
A112: Морковь | B112: 32.57 | C112: 10.64 | D112: 38.57 | E112: 77.14 | F112: 36.24 | G112: 55.82 | H112: 10.64 | I112: 60.38 | J112: 79.39 | K112: 33.25 | L112: 434.64
A113: Лук репчатый | B113: 24.04 | C113: 11.31 | D113: 33.48 | E113: 25.70 | F113: 28.92 | G113: 25.51 | H113: 21.78 | I113: 37.25 | J113: 10.32 | K113: 26.20 | L113: 244.51
A114: Свекла | B114: 0.00 | C114: 64.60 | D114: 0.00 | E114: 0.00 | F114: 69.36 | G114: 0.00 | H114: 64.60 | I114: 43.52 | J114: 0.00 | K114: 0.00 | L114: 242.08
A115: Капуста свежая | B115: 50.60 | C115: 20.00 | D115: 202.50 | E115: 50.00 | F115: 124.15 | G115: 50.60 | H115: 0.00 | I115: 56.60 | J115: 0.00 | K115: 20.00 | L115: 574.45
A116: Икра кабачковая | B116: 0.00 | C116: 0.00 | D116: 0.00 | E116: 0.00 | F116: 0.00 | G116: 0.00 | H116: 0.00 | I116: 0.00 | J116: 0.00 | K116: 0.00 | L116: 0.00
A117: Огурцы соленые | B117: 0.00 | C117: 0.00 | D117: 0.00 | E117: 0.00 | F117: 0.00 | G117: 21.84 | H117: 0.00 | I117: 0.00 | J117: 0.00 | K117: 0.00 | L117: 21.84
A118: Помидоры свежие | B118: 0.00 | C118: 0.00 | D118: 52.00 | E118: 0.00 | F118: 52.00 | G118: 0.00 | H118: 0.00 | I118: 52.00 | J118: 0.00 | K118: 52.00 | L118: 208.00
A119: Огурцы свежие | B119: 0.00 | C119: 0.00 | D119: 0.00 | E119: 0.00 | F119: 0.00 | G119: 0.00 | H119: 0.00 | I119: 0.00 | J119: 0.00 | K119: 0.00 | L119: 0.00
A120: Соус Переменка | B120: 0.00 | C120: 0.00 | D120: 0.00 | E120: 0.00 | F120: 0.00 | G120: 0.00 | H120: 0.00 | I120: 0.00 | J120: 0.00 | K120: 0.00 | L120: 0.00
A121: Томат-паста | B121: 1.00 | C121: 0.00 | D121: 5.60 | E121: 0.00 | F121: 1.00 | G121: 0.00 | H121: 0.00 | I121: 1.00 | J121: 1.00 | K121: 3.00 | L121: 12.60
A122: Масло сливочное | B122: 11.00 | C122: 9.00 | D122: 22.10 | E122: 9.90 | F122: 12.33 | G122: 13.10 | H122: 15.90 | I122: 9.01 | J122: 11.00 | K122: 16.20 | L122: 129.54
A123: Масло растительное | B123: 18.70 | C123: 8.00 | D123: 3.50 | E123: 8.33 | F123: 10.35 | G123: 14.30 | H123: 5.50 | I123: 11.20 | J123: 5.10 | K123: 11.38 | L123: 96.36
A124: Фрукты свежие | B124: 0.00 | C124: 0.00 | D124: 0.00 | E124: 114.00 | F124: 0.00 | G124: 114.00 | H124: 0.00 | I124: 114.00 | J124: 0.00 | K124: 114.00 | L124: 456.00
A125: Яблоки | B125: 0.00 | C125: 40.80 | D125: 0.00 | E125: 0.00 | F125: 40.80 | G125: 0.00 | H125: 40.80 | I125: 0.00 | J125: 0.00 | K125: 0.00 | L125: 122.40
A126: крыжовник зам. | B126: 0.00 | C126: 0.00 | D126: 0.00 | E126: 0.00 | F126: 0.00 | G126: 0.00 | H126: 0.00 | I126: 0.00 | J126: 0.00 | K126: 0.00 | L126: 0.00
A127: Лимон | B127: 0.00 | C127: 5.10 | D127: 0.00 | E127: 0.00 | F127: 5.10 | G127: 0.00 | H127: 5.10 | I127: 0.00 | J127: 0.00 | K127: 5.10 | L127: 20.40
A128: Апельсин | B128: 0.00 | C128: 0.00 | D128: 0.00 | E128: 0.00 | F128: 0.00 | G128: 0.00 | H128: 0.00 | I128: 0.00 | J128: 0.00 | K128: 0.00 | L128: 0.00
A129: Сок | B129: 125.00 | C129: 0.00 | D129: 125.00 | E129: 0.00 | F129: 125.00 | G129: 0.00 | H129: 125.00 | I129: 0.00 | J129: 125.00 | K129: 0.00 | L129: 625.00
A130: Фруктовое пюре | B130: 0.00 | C130: 125.00 | D130: 0.00 | E130: 0.00 | F130: 0.00 | G130: 0.00 | H130: 0.00 | I130: 0.00 | J130: 0.00 | K130: 0.00 | L130: 125.00
A131: Сухофрукты | B131: 0.00 | C131: 0.00 | D131: 18.36 | E131: 0.00 | F131: 0.00 | G131: 0.00 | H131: 0.00 | I131: 0.00 | J131: 0.00 | K131: 18.36 | L131: 36.72
A132: Урюк | B132: 15.30 | C132: 0.00 | D132: 0.00 | E132: 0.00 | F132: 0.00 | G132: 15.30 | H132: 0.00 | I132: 15.30 | J132: 0.00 | K132: 0.00 | L132: 45.90
A133: повидло фруктовое | B133: 0.00 | C133: 0.00 | D133: 0.00 | E133: 20.00 | F133: 0.00 | G133: 0.00 | H133: 20.00 | I133: 20.00 | J133: 0.00 | K133: 0.00 | L133: 60.00
A134: Шиповник порошок | B134: 0.00 | C134: 0.00 | D134: 2.70 | E134: 0.00 | F134: 0.00 | G134: 0.00 | H134: 0.00 | I134: 2.70 | J134: 0.00 | K134: 0.00 | L134: 5.40
A135: Молоко | B135: 100.00 | C135: 333.77 | D135: 148.00 | E135: 293.90 | F135: 178.00 | G135: 152.50 | H135: 293.90 | I135: 151.11 | J135: 219.87 | K135: 333.90 | L135: 2204.95
A136: Кефир | B136: 0.00 | C136: 0.00 | D136: 0.00 | E136: 0.00 | F136: 114.00 | G136: 0.00 | H136: 0.00 | I136: 0.00 | J136: 114.00 | K136: 0.00 | L136: 228.00
A137: Ряженка | B137: 0.00 | C137: 0.00 | D137: 114.00 | E137: 0.00 | F137: 0.00 | G137: 114.00 | H137: 0.00 | I137: 0.00 | J137: 0.00 | K137: 0.00 | L137: 228.00
A138: Катык | B138: 114.00 | C138: 0.00 | D138: 0.00 | E138: 0.00 | F138: 0.00 | G138: 0.00 | H138: 0.00 | I138: 114.00 | J138: 0.00 | K138: 0.00 | L138: 228.00
A139: Молоко сгущенное | B139: 0.00 | C139: 20.00 | D139: 0.00 | E139: 0.00 | F139: 0.00 | G139: 0.00 | H139: 0.00 | I139: 0.00 | J139: 20.00 | K139: 0.00 | L139: 40.00
A140: Сметана | B140: 0.00 | C140: 20.28 | D140: 6.00 | E140: 8.90 | F140: 6.00 | G140: 5.00 | H140: 8.90 | I140: 5.00 | J140: 14.28 | K140: 16.38 | L140: 90.74
A141: Творог | B141: 0.00 | C141: 109.28 | D141: 0.00 | E141: 98.80 | F141: 0.00 | G141: 0.00 | H141: 98.80 | I141: 0.00 | J141: 109.28 | K141: 0.00 | L141: 416.16
A142: Говядина | B142: 0.00 | C142: 0.00 | D142: 0.00 | E142: 41.78 | F142: 0.00 | G142: 0.00 | H142: 0.00 | I142: 52.00 | J142: 0.00 | K142: 0.00 | L142: 93.78
A143: Фарш из говядины | B143: 48.00 | C143: 17.10 | D143: 28.00 | E143: 0.00 | F143: 45.93 | G143: 60.10 | H143: 58.00 | I143: 0.00 | J143: 0.00 | K143: 0.00 | L143: 257.13
A144: Цыплята | B144: 76.45 | C144: 80.00 | D144: 22.61 | E144: 0.00 | F144: 127.22 | G144: 84.61 | H144: 22.61 | I144: 60.65 | J144: 22.61 | K144: 0.00 | L144: 496.76
A145: индейка филе | B145: 0.00 | C145: 0.00 | D145: 0.00 | E145: 0.00 | F145: 0.00 | G145: 0.00 | H145: 0.00 | I145: 0.00 | J145: 0.00 | K145: 0.00 | L145: 0.00
A146: куриная грудка | B146: 0.00 | C146: 0.00 | D146: 0.00 | E146: 0.00 | F146: 0.00 | G146: 0.00 | H146: 0.00 | I146: 0.00 | J146: 0.00 | K146: 85.33 | L146: 85.33
A147: Сыр | B147: 0.00 | C147: 7.14 | D147: 0.00 | E147: 7.14 | F147: 0.00 | G147: 7.14 | H147: 0.00 | I147: 7.14 | J147: 0.00 | K147: 25.14 | L147: 53.70
A148: Ежики рыбные с рисом пф 74гр | B148: 0.00 | C148: 0.00 | D148: 0.00 | E148: 0.00 | F148: 0.00 | G148: 0.00 | H148: 0.00 | I148: 0.00 | J148: 1.00 | K148: 0.00 | L148: 1.00
A149: Кофейный напиток | B149: 0.00 | C149: 0.00 | D149: 0.00 | E149: 1.50 | F149: 0.00 | G149: 0.00 | H149: 1.50 | I149: 0.00 | J149: 0.00 | K149: 1.50 | L149: 4.50
A150: Какао-порошок | B150: 0.00 | C150: 1.50 | D150: 0.00 | E150: 0.00 | F150: 1.50 | G150: 0.00 | H150: 0.00 | I150: 0.00 | J150: 1.50 | K150: 0.00 | L150: 4.50
A151: печенье | B151: 0.00 | C151: 10.00 | D151: 0.00 | E151: 0.00 | F151: 0.00 | G151: 0.00 | H151: 10.00 | I151: 0.00 | J151: 0.00 | K151: 0.00 | L151: 20.00
A152: крекер | B152: 0.00 | C152: 0.00 | D152: 0.00 | E152: 0.00 | F152: 10.00 | G152: 0.00 | H152: 0.00 | I152: 0.00 | J152: 10.00 | K152: 0.00 | L152: 20.00
A153: Соль | B153: 4.60 | C153: 4.10 | D153: 4.37 | E153: 3.53 | F153: 3.20 | G153: 4.60 | H153: 4.00 | I153: 5.91 | J153: 3.60 | K153: 4.50 | L153: 42.41
A154: печенье КП | B154: 0.00 | C154: 0.00 | D154: 0.00 | E154: 0.00 | F154: 0.00 | G154: 0.00 | H154: 0.00 | I154: 0.00 | J154: 0.00 | K154: 0.00 | L154: 0.00
A155: Сухари панировочные | B155: 0.00 | C155: 7.00 | D155: 0.00 | E155: 0.00 | F155: 0.00 | G155: 6.00 | H155: 2.00 | I155: 0.00 | J155: 0.00 | K155: 0.00 | L155: 15.00
A156: вафли | B156: 0.00 | C156: 0.00 | D156: 0.00 | E156: 21.00 | F156: 0.00 | G156: 0.00 | H156: 0.00 | I156: 0.00 | J156: 0.00 | K156: 0.00 | L156: 21.00
A157: Крупы, бобовые | B157: 55.50 | C157: 37.40 | D157: 37.00 | E157: 48.00 | F157: 63.50 | G157: 58.00 | H157: 63.20 | I157: 45.60 | J157: 48.40 | K157: 67.70 | L157: 524.30
A158: Овощи разные | B158: 108.21 | C158: 106.55 | D158: 332.15 | E158: 152.84 | F158: 311.67 | G158: 153.77 | H158: 97.02 | I158: 250.75 | J158: 90.71 | K158: 134.45 | L158: 1738.12
A159: Фрукты | B159: 0.00 | C159: 45.90 | D159: 0.00 | E159: 114.00 | F159: 45.90 | G159: 114.00 | H159: 45.90 | I159: 114.00 | J159: 0.00 | K159: 119.10 | L159: 598.80
A160: Фрукты сухие | B160: 15.30 | C160: 125.00 | D160: 18.36 | E160: 20.00 | F160: 0.00 | G160: 15.30 | H160: 20.00 | I160: 35.30 | J160: 0.00 | K160: 18.36 | L160: 267.62
A161: Молочные прод. | B161: 214.00 | C161: 353.77 | D161: 262.00 | E161: 293.90 | F161: 292.00 | G161: 266.50 | H161: 293.90 | I161: 265.11 | J161: 353.87 | K161: 333.90 | L161: 2928.95
A162: птица | B162: 76.45 | C162: 80.00 | D162: 22.61 | E162: 0.00 | F162: 127.22 | G162: 84.61 | H162: 22.61 | I162: 60.65 | J162: 22.61 | K162: 85.33 | L162: 582.09
A163: Говядина | B163: 48.00 | C163: 17.10 | D163: 28.00 | E163: 41.78 | F163: 45.93 | G163: 60.10 | H163: 58.00 | I163: 52.00 | J163: 0.00 | K163: 0.00 | L163: 350.91
A164: Макаронные изделия | B164: 8.00 | C164: 0.00 | D164: 45.50 | E164: 0.00 | F164: 0.00 | G164: 45.50 | H164: 0.00 | I164: 15.55 | J164: 0.00 | K164: 0.00 | L164: 114.55
A165: Хлеб пшеничный | B165: 51.00 | C165: 65.00 | D165: 45.00 | E165: 45.00 | F165: 45.00 | G165: 51.00 | H165: 61.40 | I165: 45.00 | J165: 45.00 | K165: 45.00 | L165: 498.40
A166: Кондитерские изделия | B166: 0.00 | C166: 10.00 | D166: 0.00 | E166: 21.00 | F166: 10.00 | G166: 0.00 | H166: 10.00 | I166: 0.00 | J166: 10.00 | K166: 0.00 | L166: 61.00

Sheet 3-7 лет Послед
A1: "Согласовано" | E1: "Утверждаю"
A2: ________________________ | E2: Заместитель генерального директора по организации питания АО "Департамент продовольствия и социального питания г. Казани"
A3: __________________________ | E3: __________________А.К. Агапова
E4: Сентябрь 2025г
C5: Примерное 10-дневное меню
C6: для организации питания детей в дошкольных образовательных учреждениях
C7: от 3-7 лет с 7-12 часовым пребыванием
B8: 1 неделя
A9: День 1 - ый
A10: Прием пищи | C10: Выход блюда | D10: Пищевые вещества (г) | G10: Энергетическая | H10: № рецептуры
A11: Наименование блюд | G11: ценность
D12: белки | E12: жиры | F12: угл-ды | G12: Ккал
B13: ЗАВТРАК
A14: Каша манная молочная с маслом | C14: 200/3 | D14: 10.00 | E14: 10.00 | F14: 24.50 | G14: 228.00 | H14: ТТК №4
A15: Чай с сахаром | C15: 180/5 | D15: 0.06 | E15: 0.02 | F15: 4.99 | G15: 20.00 | H15: № 411 Дели2016
A16: Бутерброд с маслом сливочным | C16: 25/5 | D16: 1.90 | E16: 4.40 | F16: 13.00 | G16: 99.00 | H16: №1 Дели2010
A17: Итого: | C17: 418 | D17: =SUM(D13:D16) -> 11.96 | E17: =SUM(E13:E16) -> 14.42 | F17: =SUM(F13:F16) -> 42.49 | G17: =SUM(G13:G16) -> 347.00
A18: Сок | C18: 125 | D18: 0.90 | E18: 0.08 | F18: 22.00 | G18: 91.00 | H18: №399 Сб.Дели2010
A20: Итого: | C20: =SUM(C18) -> 125 | D20: =SUM(D18) -> 0.90 | E20: =SUM(E18) -> 0.08 | F20: =SUM(F18) -> 22.00 | G20: =SUM(G18) -> 91.00
C21: 543 | D21: =D17+D20 -> 12.86 | E21: =E17+E20 -> 14.50 | F21: =F17+F20 -> 64.49 | G21: =G17+G20 -> 438.00
B22: ОБЕД
A23: Салат из свежей капусты | C23: 50 | D23: 0.70 | E23: 2.50 | F23: 4.50 | G23: 43.50 | H23: №21 Дели2016
A24: Суп вермишелевый с картофелем и курицей | C24: 200/10 | D24: 3.86 | E24: 5.80 | F24: 15.24 | G24: 133.00 | H24: №88 Дели 2016
A25: Тефтели из говядины с соусом томатным | C25: 70/10 | D25: 6.2 | E25: 6.5 | F25: 5 | G25: 103 | H25: ТТК № 1152 от 09.10.2020 и №364 С-Петербург 2008
A26: Каша гречневая вязкая | C26: 130/3 | D26: 6.20 | E26: 5.80 | F26: 38.00 | G26: 229.00 | H26: №182,Дели 2016
A27: Кисель | C27: 180 | F27: 10.00 | G27: 40.00 | H27: №284Партнер2014
A28: Хлеб сельский | C28: 37.5 | D28: 1.8 | E28: 0.4 | F28: 18 | G28: 82.5
A29: Итого: | C29: 690.5 | D29: =SUM(D22:D28) -> 18.76 | E29: =SUM(E22:E28) -> 21.00 | F29: =SUM(F22:F28) -> 90.74 | G29: =SUM(G22:G28) -> 631.00
B30: ПОЛДНИК
A31: Булочка Домашняя | C31: 50 | D31: 4.90 | E31: 5.00 | F31: 38.00 | G31: 217.00 | H31: №258 Партнер г. Уфа 2014
A32: Катык | C32: 110 | D32: 3.77 | E32: 2.75 | F32: 5 | G32: 62.1 | H32: №401Дели2010
A33: Рагу с курицей | C33: 120/25 | D33: 6.00 | E33: 9.50 | F33: 16.90 | G33: 177.00 | H33: ТТК №63
A34: Напиток из урюка | C34: 180 | D34: 0.6 | E34: 0.1 | F34: 15.0 | G34: 63 | H34: ТТК №68
A35: Хлеб пшеничный 1с | C35: 20 | D35: 1.52 | E35: 0.16 | F35: 9.84 | G35: 47.00
A36: Итого: | C36: 505 | D36: =SUM(D31:D35) -> 16.79 | E36: =SUM(E31:E35) -> 17.47 | F36: =SUM(F31:F35) -> 84.74 | G36: =SUM(G31:G35) -> 565.60
A37: ВСЕГО: | C37: =C17+C20+C29+C36 -> 1738.5 | D37: =D17+D20+D29+D36 -> 48.41 | E37: =E17+E20+E29+E36 -> 52.97 | F37: =F17+F20+F29+F36 -> 239.97 | G37: =G17+G20+G29+G36 -> 1634.60
A38: День 2- ой
A39: Прием пищи | C39: Выход блюда | D39: Пищевые вещества (г) | G39: Энергетическая | H39: № рецептуры
A40: Наименование блюд | G40: ценность
D41: белки | E41: жиры | F41: угл-ды | G41: Ккал
B42: ЗАВТРАК
A43: Каша "Дружба" молочная с маслом | C43: 200/3 | D43: 5.20 | E43: 5.80 | F43: 25.20 | G43: 173.80 | H43: ТТК №7
A44: Какао с молоком | C44: 180 | D44: 2.42 | E44: 2.58 | F44: 13.61 | G44: 87.30 | H44: №272 Парнер г. Уфа 2014
A45: Бутерброд с сыром, маслом | C45: 25/7/3 | D45: 4.00 | E45: 6.00 | F45: 12.83 | G45: 122.00 | H45: №3 Дели2010
A46: Итого: | C46: 418 | D46: =SUM(D42:D45) -> 11.62 | E46: =SUM(E42:E45) -> 14.38 | F46: =SUM(F42:F45) -> 51.64 | G46: =SUM(G42:G45) -> 383.10
A47: Фруктовое пюре | C47: 125 | D47: 13.00 | G47: 55.00
A49: Итого: | C49: 100 | D49: =SUM(D47) -> 13.00 | E49: =SUM(E47) -> 0.00 | F49: =SUM(F47) -> 0.00 | G49: =SUM(G47) -> 55.00
C50: 543 | D50: =D46+D49 -> 24.62 | E50: =E46+E49 -> 14.38 | F50: =F46+F49 -> 51.64 | G50: =G46+G49 -> 438.10
B51: ОБЕД
A52: Салат из свеклы | C52: 50 | D52: 0.60 | E52: 2.50 | F52: 4.20 | G52: 42.00 | H52: №34, Дели2016
A53: Суп из овощей с мясными фрикадельками, со сметаной | C53: 200/15/6 | D53: 6.20 | E53: 5.25 | F53: 29.00 | G53: 188.00 | H53: №64 "Партнер"2014
A54: Котлеты рубленые из птицы | C54: 70 | D54: 6.20 | E54: 10.80 | F54: 3.00 | G54: 134.00 | H54: № 205,справ.М2003
A55: Пюре Картофельное | C55: 130 | D55: 3.70 | E55: 4.44 | F55: 25.00 | G55: 155.00 | H55: №137 Партнер 2014
A56: Компот из свежих яблок | C56: 180 | D56: 0.10 | E56: 0.10 | F56: 11.80 | G56: 49.00 | H56: № 390 Дели 2016
A57: Хлеб сельский | C57: 37.5 | D57: 1.8 | E57: 0.4 | F57: 18 | G57: 82.5
A58: Итого: | C58: 683.5 | D58: =SUM(D52:D57) -> 18.60 | E58: =SUM(E52:E57) -> 23.49 | F58: =SUM(F52:F57) -> 91.00 | G58: =SUM(G52:G57) -> 650.50
B59: ПОЛДНИК
A60: Кондитерские изделия | C60: 10 | D60: 3.86 | E60: 3.38 | F60: 34.10 | G60: 180.00
A61: печенье
A62: Молоко кипяченое | C62: 110 | D62: 2.50 | E62: 2.75 | F62: 4.00 | G62: 51.00 | H62: №419 Дели2016
A63: Суфле из творога с молоком сгущенным | C63: 150/20 | D63: 9.00 | E63: 12.50 | F63: 24.00 | G63: 245.00 | H63: ТТК №567
A64: Чай с сахаром и лимоном | C64: 180/5/5 | D64: 0.12 | E64: 0.01 | F64: 10.20 | G64: 41.00 | H64: №393Дели2010
A65: Хлеб пшеничный 1с | C65: 20 | D65: 1.52 | E65: 0.16 | F65: 9.84 | G65: 47.00
A66: Итого: | C66: 500 | D66: =SUM(D59:D65) -> 17.00 | E66: =SUM(E59:E65) -> 18.80 | F66: =SUM(F59:F65) -> 82.14 | G66: =SUM(G59:G65) -> 564.00
A67: ВСЕГО: | C67: =C46+C49+C58+C66 -> 1701.5 | D67: =D46+D49+D58+D66 -> 60.22 | E67: =E46+E49+E58+E66 -> 56.67 | F67: =F46+F49+F58+F66 -> 224.78 | G67: =G46+G49+G58+G66 -> 1652.60
A68: День 3 - ий
A69: Прием пищи | C69: Выход блюда | D69: Пищевые вещества (г) | G69: Энергетическая | H69: № рецептуры
A70: Наименование блюд | G70: ценность
D71: белки | E71: жиры | F71: угл-ды | G71: Ккал
B72: ЗАВТРАК
A73: Каша Геркулесовая молочная с маслом | C73: 200/3 | D73: 6.70 | E73: 7.50 | F73: 22.00 | G73: 182.30 | H73: ТТК №5
A74: Чай с молоком,сахаром | C74: 180/5 | D74: 2.60 | E74: 2.30 | F74: 14.30 | G74: 89.00 | H74: № 394 Дели2010
A75: Бутерброд с маслом сливочным | C75: 25/5 | D75: 1.91 | E75: 4.35 | F75: 12.89 | G75: 99.00 | H75: №1 Дели2010
A76: Итого: | C76: 418 | D76: =SUM(D73:D75) -> 11.21 | E76: =SUM(E73:E75) -> 14.15 | F76: =SUM(F73:F75) -> 49.19 | G76: =SUM(G73:G75) -> 370.30
A77: Сок | C77: 125 | D77: 1.63 | E77: 0.10 | F77: 15.00 | G77: 67.00 | H77: №418Дели2016
A78: яблочно-абрикосовый
A79: Итого: | C79: =SUM(C77) -> 125 | D79: =SUM(D77) -> 1.63 | E79: =SUM(E77) -> 0.10 | F79: =SUM(F77) -> 15.00 | G79: =SUM(G77) -> 67.00
C80: 543 | D80: =D76+D79 -> 12.84 | E80: =E76+E79 -> 14.25 | F80: =F76+F79 -> 64.19 | G80: =G76+G79 -> 437.30
B81: ОБЕД
A82: Помидоры свежие порционно | C82: 50 | D82: 0.55 | E82: 0.10 | F82: 1.90 | G82: 12.00 | H82: стр563,сб1996
A83: Суп с рисовой крупой и картофелем с курицей | C83: 200/10 | D83: 2.40 | E83: 9.00 | F83: 3.40 | G83: 104.00 | H83: №86 Дели 2016
A84: Соус мясной "Смак" | C84: 70 | D84: 10.10 | E84: 6.80 | F84: 17.00 | G84: 170.00 | H84: ТТК № 1523 от 28.07.2021
A85: Макароны отварные | C85: 130 | D85: 4.80 | E85: 3.60 | F85: 29.40 | G85: 169.00 | H85: №218 Дели 2016
A86: Компот из сухофруктов | C86: 180 | D86: 0.18 | E86: 0.1 | F86: 25.9 | G86: 89 | H86: №394, Дели 2016
A87: Хлеб сельский | C87: 37.5 | D87: 1.8 | E87: 0.4 | F87: 18 | G87: 82.5
A88: Итого: | C88: 682.5 | D88: =SUM(D82:D87) -> 19.83 | E88: =SUM(E82:E87) -> 19.99 | F88: =SUM(F82:F87) -> 95.56 | G88: =SUM(G82:G87) -> 626.50
B89: ПОЛДНИК
A90: Ряженка | C90: 110 | D90: 3.19 | E90: 2.75 | F90: 4.62 | G90: 59.00 | H90: №401 Дели2010
A91: Булочка Дорожная | C91: 50 | D91: 3.55 | E91: 5.91 | F91: 30.10 | G91: 188.00 | H91: №453 Дели 2016
A92: Яйцо вареное | C92: 48 | D92: 5.10 | E92: 4.60 | F92: 0.30 | G92: 63.00 | H92: №227 Дели 2016
A93: Капуста тушеная (в сметанном соусе) | C93: 130 | D93: 3.25 | E93: 5.3 | F93: 25.3 | G93: 162 | H93: ТТК№53Д
A94: Напиток шиповника | C94: 180/5 | D94: 0.6 | E94: 0.3 | F94: 6.5 | G94: 31 | H94: ТТК № 59
A95: Хлеб пшеничный 1с | C95: 20 | D95: 1.52 | E95: 0.16 | F95: 9.84 | G95: 47.00
A96: Итого: | C96: 543 | D96: =SUM(D90:D95) -> 17.21 | E96: =SUM(E90:E95) -> 19.02 | F96: =SUM(F90:F95) -> 76.66 | G96: =SUM(G90:G95) -> 550.00
A97: ВСЕГО: | C97: =C76+C79+C88+C96 -> 1768.5 | D97: =D76+D79+D88+D96 -> 49.88 | E97: =E76+E79+E88+E96 -> 53.26 | F97: =F76+F79+F88+F96 -> 236.41 | G97: =G76+G79+G88+G96 -> 1613.80
A98: День 4 - ый
A99: Прием пищи | C99: Выход блюда | D99: Пищевые вещества (г) | G99: Энергетическая | H99: № рецептуры
A100: Наименование блюд | G100: ценность
D101: белки | E101: жиры | F101: угл-ды | G101: Ккал
B102: ЗАВТРАК
A103: Каша пшенная молочная с маслом | C103: 200/3 | D103: 8.00 | E103: 6.60 | F103: 26.00 | G103: 195.40 | H103: ТТК №6
A104: Кофейный напиток с молоком | C104: 180 | D104: 1.22 | E104: 1.34 | F104: 11.94 | G104: 65.00 | H104: №270 Партнер г. Уфа 2014
A105: Бутерброд с сыром, маслом | C105: 25/7/3 | D105: 4.00 | E105: 6.00 | F105: 12.83 | G105: 122.00 | H105: №3 Дели2010
A106: Итого: | C106: 418 | D106: =SUM(D102:D105) -> 13.22 | E106: =SUM(E102:E105) -> 13.94 | F106: =SUM(F102:F105) -> 50.77 | G106: =SUM(G102:G105) -> 382.40
A107: Фрукты свежие | C107: 100 | D107: 0.40 | E107: 0.40 | F107: 12.00 | G107: 53.20 | H107: № 386 Дели 2016
A108: яблоко
A109: Итого: | C109: =SUM(C107) -> 100 | D109: =SUM(D107) -> 0.40 | E109: =SUM(E107) -> 0.40 | F109: =SUM(F107) -> 12.00 | G109: =SUM(G107) -> 53.20
C110: 518 | D110: =D106+D109 -> 13.62 | E110: =E106+E109 -> 14.34 | F110: =F106+F109 -> 62.77 | G110: =G106+G109 -> 435.60
B111: ОБЕД
A112: Салат из моркови | C112: 50 | D112: 0.75 | E112: 0.06 | F112: 8.50 | G112: 37.00 | H112: №42 Дели2016г
A113: Щи со свежей капустой, картофелем, на м/б и сметаной | C113: 200/5 | D113: 4.60 | E113: 8.00 | F113: 23.80 | G113: 186.00 | H113: №124 сб.шк.2004
A114: Жаркое по-домашнему из отварной говядины | C114: 160 | D114: 10.9 | E114: 11.1 | F114: 33.58 | G114: 278 | H114: ТТК №29 Д
A115: Кисель | C115: 180 | F115: 10.00 | G115: 40.00 | H115: №284Партнер2014
A116: Хлеб сельский | C116: 37.5 | D116: 1.8 | E116: 0.4 | F116: 18 | G116: 82.5
A117: Итого: | C117: 632.5 | D117: =SUM(D112:D116) -> 18.05 | E117: =SUM(E112:E116) -> 19.56 | F117: =SUM(F112:F116) -> 93.88 | G117: =SUM(G112:G116) -> 623.50
B118: ПОЛДНИК
A119: Кондитерские изделия | C119: 21 | D119: 2.50 | E119: 5.50 | F119: 35.00 | G119: 190.00
A120: вафли
A121: Молоко кипяченое | C121: 110 | D121: 2.50 | E121: 2.75 | F121: 4.00 | G121: 51.00 | H121: №419 Дели2016
A123: Пудинг из творога с рисом с повидлом | C123: 130/20 | D123: 9.00 | E123: 10.40 | F123: 28.30 | G123: 242.00 | H123: № 250 Дели 2016
A125: Чай с сахаром | C125: 180/5 | D125: 0.06 | E125: 0.02 | F125: 4.99 | G125: 20.00 | H125: № 411 Дели2016
A126: Хлеб пшеничный 1с | C126: 20 | D126: 1.52 | E126: 0.16 | F126: 9.84 | G126: 47.00
A127: Итого: | C127: 486 | D127: =SUM(D118:D126) -> 15.58 | E127: =SUM(E118:E126) -> 18.83 | F127: =SUM(F118:F126) -> 82.13 | G127: =SUM(G118:G126) -> 550.00
A128: ВСЕГО: | C128: =C106+C109+C117+C127 -> 1636.5 | D128: =D106+D109+D117+D127 -> 47.25 | E128: =E106+E109+E117+E127 -> 52.73 | F128: =F106+F109+F117+F127 -> 238.78 | G128: =G106+G109+G117+G127 -> 1609.10
A129: День 5 - ый
A130: Прием пищи | C130: Выход блюда | D130: Пищевые вещества (г) | G130: Энергетическая | H130: № рецептуры
A131: Наименование блюд | G131: ценность
D132: белки | E132: жиры | F132: угл-ды | G132: Ккал
B133: ЗАВТРАК
A134: Каша полбяная молочная с маслом | C134: 200/3 | D134: 8 | E134: 7.8 | F134: 19 | G134: 194 | H134: ТТК №1
A135: Какао с молоком | C135: 180 | D135: 2.42 | E135: 2.58 | F135: 13.61 | G135: 87.30 | H135: №272 Парнер г. Уфа 2014
A136: Бутерброд с маслом сливочным | C136: 25/5 | D136: 1.91 | E136: 4.35 | F136: 12.89 | G136: 99.00 | H136: №1 Дели2010
A137: Итого: | C137: 413 | D137: =SUM(D133:D136) -> 12.33 | E137: =SUM(E133:E136) -> 14.73 | F137: =SUM(F133:F136) -> 45.50 | G137: =SUM(G133:G136) -> 380.30
A138: Сок | C138: 125 | D138: 1.20 | E138: 0.06 | F138: 17.50 | G138: 75.00 | H138: №418Дели2016
A139: вишневый
A140: Итого: | C140: =SUM(C138) -> 125 | D140: =SUM(D138:D139) -> 1.20 | E140: =SUM(E138:E139) -> 0.06 | F140: 17.50 | G140: 75.00
C141: 538 | D141: =D137+D140 -> 13.53 | E141: =E137+E140 -> 14.79 | F141: =F137+F140 -> 63.00 | G141: =G137+G140 -> 455.30
B142: ОБЕД
A143: Помидоры свежие порционно | C143: 50 | D143: 0.55 | E143: 0.10 | F143: 1.90 | G143: 12.00 | H143: стр563,сб1996
A144: Свекольник с курицей , со сметаной | C144: 200/10/6 | D144: 3.80 | E144: 5.40 | F144: 18.60 | G144: 138.00 | H144: №35,сб Пермь2001
A145: Плов из курицы | C145: 160 | D145: 12 | E145: 14 | F145: 38.9 | G145: 330 | H145: №321 Дели 2016
A146: Компот из свежих яблок | C146: 180 | D146: 0.10 | E146: 0.10 | F146: 11.80 | G146: 49.00 | H146: № 390 Дели 2016
A147: Хлеб сельский | C147: 37.5 | D147: 1.8 | E147: 0.4 | F147: 18 | G147: 82.5
A148: Итого: | C148: 633.5 | D148: =SUM(D143:D147) -> 18.25 | E148: =SUM(E143:E147) -> 20.00 | F148: =SUM(F143:F147) -> 89.20 | G148: =SUM(G143:G147) -> 611.50
B149: ПОЛДНИК
A150: Кондитерские изделия | C150: 10 | D150: 2.00 | E150: 3.00 | F150: 25.00 | G150: 129.00
A151: крекер
A152: Кефир | C152: 110 | D152: 3.68 | E152: 2.75 | F152: 5.07 | G152: 68.00 | H152: №401 Дели2010
A153: Капуста тушеная с мясом | C153: 130 | D153: 10.6 | E153: 12.65 | F153: 33 | G153: 288 | H153: №54-10М Сборник рецептур Москва
A154: Чай с сахаром и лимоном | C154: 180/5/5 | D154: 0.12 | E154: 0.01 | F154: 10.20 | G154: 41.00 | H154: №393Дели2010
A155: Хлеб пшеничный 1с | C155: 20 | D155: 1.52 | E155: 0.16 | F155: 9.84 | G155: 47.00
A156: Итого: | C156: 460 | D156: =SUM(D150:D155) -> 17.92 | E156: =SUM(E150:E155) -> 18.57 | F156: =SUM(F150:F155) -> 83.11 | G156: =SUM(G150:G155) -> 573.00
A157: ВСЕГО: | C157: =C137+C140+C148+C156 -> 1631.5 | D157: =D137+D140+D148+D156 -> 49.70 | E157: =E137+E140+E148+E156 -> 53.36 | F157: =F137+F140+F148+F156 -> 235.31 | G157: =G137+G140+G148+G156 -> 1639.80
C158: 2 неделя
A159: День 6 - ой
A160: Прием пищи | C160: Выход блюда | D160: Пищевые вещества (г) | G160: Энергетическая | H160: № рецептуры
A161: Наименование блюд | G161: ценность
D162: белки | E162: жиры | F162: угл-ды | G162: Ккал
B163: ЗАВТРАК
A164: Каша Геркулесовая молочная с маслом | C164: 200/3 | D164: 6.70 | E164: 7.50 | F164: 22.00 | G164: 182.30 | H164: ТТК №5
A165: Чай с молоком,сахаром | C165: 180/5 | D165: 2.60 | E165: 2.30 | F165: 14.30 | G165: 89.00 | H165: № 394 Дели2010
A166: Бутерброд с сыром, маслом | C166: 25/7/3 | D166: 4.00 | E166: 6.00 | F166: 12.83 | G166: 122.00 | H166: №3 Дели2010
A167: Итого: | C167: 423 | D167: =SUM(D164:D166) -> 13.30 | E167: =SUM(E164:E166) -> 15.80 | F167: =SUM(F164:F166) -> 49.13 | G167: =SUM(G164:G166) -> 393.30
A168: Фрукты свежие | C168: 100 | D168: 0.40 | E168: 0.40 | F168: 12.00 | G168: 53.20 | H168: № 386 Дели 2016
A169: яблоко
A170: Итого: | C170: 85 | D170: =SUM(D168:D169) -> 0.40 | E170: =SUM(E168:E169) -> 0.40 | F170: =SUM(F168:F169) -> 12.00 | G170: =SUM(G168:G169) -> 53.20
C171: 523 | D171: =D167+D170 -> 13.70 | E171: 15.40 | F171: =F167+F170 -> 61.13 | G171: =G167+G170 -> 446.50
B172: ОБЕД
A173: Салат из свежей капусты | C173: 50 | D173: 0.70 | E173: 2.50 | F173: 4.50 | G173: 43.50 | H173: №21 Дели2016
A174: Рассольник ленинградский с мясными фрикадельками, со сметаной | C174: 200/15/5 | D174: 3.56 | E174: 4.50 | F174: 23.60 | G174: 149.00 | H174: №82 Дели 2016
A175: Биточки куриные "Солнышко" | C175: 70 | D175: 8.00 | E175: 10.50 | F175: 6.20 | G175: 152.00 | H175: ТТК №97Д
A176: Макароны отварные | C176: 130 | D176: 4.80 | E176: 3.60 | F176: 29.40 | G176: 169.00 | H176: №218 Дели 2016
A177: Кисель | C177: 180 | F177: 10.00 | G177: 40.00 | H177: №284Партнер2014
A178: Хлеб сельский | C178: 37.5 | D178: 1.8 | E178: 0.4 | F178: 18 | G178: 82.5
A179: Итого: | C179: 687.5 | D179: =SUM(D173:D178) -> 18.86 | E179: =SUM(E173:E178) -> 21.50 | F179: =SUM(F173:F178) -> 91.70 | G179: =SUM(G173:G178) -> 636.00
B180: ПОЛДНИК
A181: Булочка сдобная | C181: 50 | D181: 3.8 | E181: 4.8 | F181: 22.3 | G181: 148 | H181: №257 Партнер2014 г. Уфа
A182: Ряженка | C182: 110 | D182: 3.19 | E182: 2.75 | F182: 4.62 | G182: 59.00 | H182: №401 Дели2010
A183: Гречка с фаршем и овощами | C183: 130 | D183: 7.30 | E183: 10.00 | F183: 33.20 | G183: 252.00 | H183: ТТК №1630 от 10.11.2021
A184: Напиток из урюка | C184: 180 | D184: 0.6 | E184: 0.1 | F184: 15.0 | G184: 63 | H184: ТТК №68
A185: Хлеб пшеничный 1с | C185: 20 | D185: 1.52 | E185: 0.16 | F185: 9.84 | G185: 47.00
A186: Итого: | C186: 490 | D186: =SUM(D181:D185) -> 16.41 | E186: =SUM(E181:E185) -> 17.77 | F186: =SUM(F181:F185) -> 84.96 | G186: =SUM(G181:G185) -> 568.50
A187: ВСЕГО: | C187: =C167+C170+C179+C186 -> 1685.5 | D187: =D167+D170+D179+D186 -> 48.97 | E187: =E167+E170+E179+E186 -> 55.47 | F187: =F167+F170+F179+F186 -> 237.79 | G187: =G167+G170+G179+G186 -> 1651.00
A188: День 7 - ой
A189: Прием пищи | C189: Выход блюда | D189: Пищевые вещества (г) | G189: Энергетическая | H189: № рецептуры
A190: Наименование блюд | G190: ценность
D191: белки | E191: жиры | F191: угл-ды | G191: Ккал
B192: ЗАВТРАК
A193: Каша ячневая молочная с маслом | C193: 200/3 | D193: 9.50 | E193: 8.80 | F193: 20.10 | G193: 198.00 | H193: ТТК №8
A194: Кофейный напиток с молоком | C194: 180 | D194: 1.22 | E194: 1.34 | F194: 11.94 | G194: 65.00 | H194: №270 Партнер г. Уфа 2014
A195: Бутерброд с маслом сливочным | C195: 25/5 | D195: 1.91 | E195: 4.35 | F195: 12.89 | G195: 99.00 | H195: №1 Дели2010
A196: Итого: | C196: 413 | D196: =SUM(D193:D195) -> 12.63 | E196: =SUM(E193:E195) -> 14.49 | F196: =SUM(F193:F195) -> 44.93 | G196: =SUM(G193:G195) -> 362.00
A197: Сок | C197: 125 | D197: 0.60 | E197: 0.06 | F197: 22.00 | G197: 91.00 | H197: №418Дели2016
A198: персик-банан
A199: Итого: | C199: =SUM(C197) -> 125 | D199: =SUM(D197:D198) -> 0.60 | E199: =SUM(E197:E198) -> 0.06 | F199: =SUM(F197:F198) -> 22.00 | G199: =SUM(G197:G198) -> 91.00
C200: 538 | D200: =D196+D199 -> 13.23 | E200: =E196+E199 -> 14.55 | F200: =F196+F199 -> 66.93 | G200: =G196+G199 -> 453.00
B201: ОБЕД
A202: Салат из свеклы | C202: 50 | D202: 0.60 | E202: 2.50 | F202: 4.20 | G202: 42.00 | H202: №34, Дели2016
A203: Суп картофельный с горохом с курицей и гренками | C203: 200/10/10 | D203: 3.80 | E203: 3.50 | F203: 20.50 | G203: 129.00
A204: Запеканка картофельная с мясом | C204: 150/20 | D204: 12.60 | E204: 14.00 | F204: 36.00 | G204: 320.00 | H204: №291 Дели2010
... 127 more rows
